{"text_format":"1","workbook":"xlsx","n_sheets":5,"sheets":["PRESENTACIÓN","INSTRUCCIONES.","CUESTIONARIO","RESPUESTAS","GRÁFICOS"],"not_rendered":{"charts":12,"images":9,"macros":1,"external_links":0,"defined_names":1,"comments":0,"pivot_tables":0},"unopened":[],"bounds":{"document_bytes":16777216,"sheet_cells":100000,"rows_first":2000,"rows_last":500,"rows_between":2000,"halvings":0,"cell_chars":16384,"cell_head_chars":4096},"cells_cut":0,"cells_raw":0,"read":"whole","date_system":"1900"}

{"sheet":"PRESENTACIÓN","index":0,"n_rows":0,"n_cols":0,"rows_kept":0,"cut":false,"hidden":false,"merged":[]}

{"sheet":"INSTRUCCIONES.","index":1,"n_rows":0,"n_cols":0,"rows_kept":0,"cut":false,"hidden":false,"merged":[]}

{"sheet":"CUESTIONARIO","index":2,"n_rows":75,"n_cols":24,"rows_kept":75,"cut":false,"hidden":false,"merged":[[67,6,67,11],[66,6,66,11],[65,6,65,11],[64,6,64,11],[63,6,63,11],[62,6,62,11],[61,6,61,11],[60,6,60,11],[59,6,59,11],[11,5,11,17],[56,5,56,17],[50,5,50,17],[46,5,46,17],[42,5,42,17],[38,5,38,17],[31,5,31,17],[27,5,27,17],[23,5,23,17],[19,5,19,17],[15,5,15,17],[58,6,58,11],[69,5,69,17],[74,6,74,11],[73,6,73,11],[72,6,72,11],[71,6,71,11]]}
[]
[]
[null,null,null,null,null,null,null,null,null,null,null,null,null,null,null,null,null,null,null,null,null,"género ","Femenino"]
[null,null,null,null,null,null,"Género",null,null,null,null,null,null,null,null,null,null,null,null,null,"a.-",null,"Masculino"]
[null,null,null,null,null,null,"Calidad Jurídica",null,null,null,null,null,null,null,null,null,null,null,null,null,"b.-"]
[null,null,null,null,null,null,"Escalafón",null,null,null,null,null,null,null,null,null,null,null,null,null,"c.-","Calidad jurídica",null,"Honorario"]
[null,null,null,null,null," ","Rango de Edad",null,null,null,null,null,null,null,null,null,null,null,null,null,"d.-",null,null,"Contrata"]
[null,null,null,null,null,null,null,null,null,null,null,null,null,null,null,null,null,null,null,null,"e.-",null,null,"Planta"]
[null,null,null,null,null,null,null,null,null,null,null,null,null,null,null,null,null,null,null,null,"f.-"]
[null,null,null,null,null,"PARTE 1.- Preguntas ámbito municipal y comunal",null,null,null,null,null,null,null,null,null,null,null,null,null,null,"g.-","Escalafón","Directivo"]
[null,null,null,null,null,null,null,null,null,null,null,null,null,null,null,null,null,null,null,null,"h.-",null,"Profesional"]
[null,null,null,null,null,"1.- ¿Cuál de las siguientes instituciones, cree usted, que es la responsanle de elaborar las ordenanzas ambientales?",null,null,null,null,null,null,null,null,null,null,null,null,null,null,"i.-",null,"Técnico"]
[null,null,null,null,null,null,null,null,null,null,null,null,null,null,null,null,null,null,null,null,"j-",null,"Administrativo"]
[null,null,null,null,null,null,null,null,null,null,null,null,null,null,null,null,null,null,null,null,null,null,"Auxiliar"]
[]
[null,null,null,null,null,"2.- Una Ordenanza ambiental es un instrumento:",null,null,null,null,null,null,null,null,null,null,null,null,null,null,null,"Rango de edad ",null,"16 - 20"]
[null,null,null,null,null,null,null,null,null,null,null,null,null,null,null,null,null,null,null,null,null,null,null,"21 - 30"]
[null,null,null,null,null,null,null,null,null,null,null,null,null,null,null,null,null,null,null,null,null,null,null,"31- 40"]
[null,null,null,null,null,null,null,null,null,null,null,null,null,null,null,null,null,null,null,null,null,null,null,"41 - 50"]
[null,null,null,null,null,"3.- En el municipio, los/as colegas practican acciones en sus oficinas que ayudarán al reciclaje, el ahorro de la energía o del agua:",null,null,null,null,null,null,null,null,null,null,null,null,null,null,null,null,null,"51 - 60"]
[null,null,null,null,null,null,null,null,null,null,null,null,null,null,null,null,null,null,null,null,null,null,null,"61 o más"]
[]
[]
[null,null,null,null,null,"4.- Ante la siguiente afirmación: \"Los/as colegas del municipio están muy preocupados por los temas ambientales\", usted estaría:"]
[null,null,null,null,null,null,null,null,null,null,null,null,null,null,null,null,null,null,null,null,null,"p1  ","a) El Congreso"]
[null,null,null,null,null,null,null,null,null,null,null,null,null,null,null,null,null,null,null,null,null,null,"b) La Superintendencia del medioambiente"]
[null,null,null,null,null,null,null,null,null,null,null,null,null,null,null,null,null,null,null,null,null,null,"c) El Municipio"]
[null,null,null,null,null,"5.- Respecto del territorio de su comuna, ¿cree que la situación medioambiental en los últimos 5 años se ha?:",null,null,null,null,null,null,null,null,null,null,null,null,null,null,null,null,"d) El Ministerio del  medio ambiente"]
[null,null,null,null,null,null,null,null,null,null,null,null,null,null,null,null,null,null,null,null,null,null,"e) ministerio de salud"]
[null,null,null,null,null,null,null,null,null,null,null,null,null,null,null,null,null,null,null,null,null,null,"f) No lo sé"]
[null,null,null,null,null,null,null,null,null,null,null,null,null,null,null,null,null,null,null,null,null,"p2","a)  Legal que permite normar y sancionar conductas ambientales de las empresas y el comercio."]
[null,null,null,null,null,"6.- ¿Cuál de los siguientes problemas ambientaleses el que más afecta en su comuna?. Priorice dos, según su gravedad. En Caso de que la opción no se encuentre, responda en las líneas presentes a continuación (sólo dos)",null,null,null,null,null,null,null,null,null,null,null,null,null,null,null,null,"b)  Administrativo que permite normar y sancionar conductas ambientales de las personas."]
[null,null,null,null,null,null,null,null,null,null,null,null,null,null,null,null,null,null,null,null,null,null,"c)  Jurídico que permite normar y sancionar conductas ambientales de la comunidad."]
[null,null,null,null,null,"1.-",null,null,null,null,null,null,null,null,null,null,null,null,null,null,null,null,"d)  Financiero que permite normar y sancionar conductas ambientales de las personas. "]
[null,null,null,null,null,"2.-",null,null,null,null,null,null,null,null,null,null,null,null,null,null,null,null,"e) No lo  sé"]
[null,null,null,null,null,null,null,null,null,null,null,null,null,null,null,null,null,null,null,null,null,null,"c) Alguna vez al mes"]
[null,null,null,null,null,"PARTE 2.- Preguntas ámbito nacional ",null,null,null,null,null,null,null,null,null,null,null,null,null,null,null,null,"d)rara vez"]
[null,null,null,null,null,null,null,null,null,null,null,null,null,null,null,null,null,null,null,null,null,null,"e)Nunca"]
[null,null,null,null,null,"7.- ¿Cree que en el país las personas están cambiando su comportamiento en forma positiva para la protección o conservación del medioambiente?:"]
[null,null,null,null,null,null,null,null,null,null,null,null,null,null,null,null,null,null,null,null,null,null,"Totalmente de acuerdo"]
[null,null,null,null,null,null,null,null,null,null,null,null,null,null,null,null,null,null,null,null,null,null,"Más bien de acuerdo"]
[null,null,null,null,null,null,null,null,null,null,null,null,null,null,null,null,null,null,null,null,null,null,"Más bien en desacuerdo"]
[null,null,null,null,null,"8.- ¿Cree que en el país la situación ambiental en los últimos 5 años se ha?:",null,null,null,null,null,null,null,null,null,null,null,null,null,null,null,null,"Totalmente en desacuerdo"]
[null,null,null,null,null,null,null,null,null,null,null,null,null,null,null,null,null,null,null,null,null,null,"Lo ignoro"]
[]
[null,null,null,null,null,null,null,null,null,null,null,null,null,null,null,null,null,null,null,null,null,null,"Totalmente de acuerdo"]
[null,null,null,null,null,"9.- A su juicio, ¿quién es el principal responsable de los problemas ambientales en el país?",null,null,null,null,null,null,null,null,null,null,null,null,null,null,null,null,"Más bien de acuerdo"]
[null,null,null,null,null,null,null,null,null,null,null,null,null,null,null,null,null,null,null,null,null,null,"Más bien en desacuerdo"]
[null,null,null,null,null,null,null,null,null,null,null,null,null,null,null,null,null,null,null,null,null,null,"Totalmente en desacuerdo"]
[null,null,null,null,null,null,null,null,null,null,null,null,null,null,null,null,null,null,null,null,null,null,"No se pronuncia"]
[null,null,null,null,null,"10.- ¿El concepto de medio ambiente para usted es sinónimo de?:"]
[]
[]
[]
[null,null,null,null,null,"PARTE 3.- Pregunta de Actitud hacia el medio ambiente."]
[]
[null,null,null,null,null,"11.- Por favor, indique cuan de acuerdo o en desacuero está con los siguientes enunciados:"]
[]
[null,null,null,null,null,null,"a) Para poder proteger el medioambiente se necesita que haya desarrollo económico"]
[null,null,null,null,null,null,"b) Me parece bien que se instalen industrias y que utilicen los recursos naturales si con ello se logran más cupos de empleos."]
[null,null,null,null,null,null,"c) Las personas tenemos derecho a utilizar todos los adelantos que proporciona la tecnología, aunque al hacerlo estemos deteriorando, sin querer el medio ambiente."]
[null,null,null,null,null,null,"d) El deterioro del medioambiente es un mal menor en el progreso económico."]
[null,null,null,null,null,null,"e) El crecimiento económico es siempre perjudicial para el medioambiente. "]
[null,null,null,null,null,null,"f) En la Naturaleza reinaría la paz y la armonía si los seres humanos dejaran de intervenirla."]
[null,null,null,null,null,null,"g) La humanidad tiene que impedir los progresos y avances tecnologícos que, aún proporcionando ciertos beneficios, impliquen peligros gravies para el medio ambiente mundial."]
[null,null,null,null,null,null,"h) Con la tecnología actual no se puede mantener el ritmo de desarrollo económico, sin perjudicar el medioambiente."]
[null,null,null,null,null,null,"i) Para proteger el medioa ambiente es necesario reducir nuestro consumo y nivel de vida."]
[null,null,null,null,null,null,"j) La protección del medio ambiente requiere de normas muy rigurosas y una fiscalización activa. "]
[]
[null,null,null,null,null,"12.- se presenta la siguiente situación: Existe un conflicto entre una empresa y una(s) comunidad(es) local(es) producto del uso o futura explotación que desea hacer la empresa sobre un determinado recurso natural. Por favor, indique cuan de acuerdo está con los siguientes enunciados."]
[]
[null,null,null,null,null,null,"a) El estado debe mantenerse al margen del conflicto, porque es un asunto entre privados y el Estado solo debe cautelar por el cumplimiento de la normativa ambiental y el orden público."]
[null,null,null,null,null,null,"b) El estado debe desarrollar mecanismos que permitan que tanto la empresa como la comunidad afectada, logren acuerdos vinculantes para una utilización equilibrada de los recursos en disputa."]
[null,null,null,null,null,null,"c) El estado debe intervenir y favorecer la iniciativa privada porque con ello se fomenta el desarrollo y la riqueza de la localidad  y del país."]
[null,null,null,null,null,null,"d) El Estado debe, por sobre todo, procurar por la protección de los recursos naturales y de las comunidades locales, aunque esto signifique prohibir el funcionamiento de determinada empresa."]

{"sheet":"RESPUESTAS","index":3,"n_rows":170,"n_cols":30,"rows_kept":170,"cut":false,"hidden":false,"merged":[]}
[]
[null,"GÉNERO","ESTAMENTO","ESCALAFÓN","RANGO DE EDAD ","P1","P2","P3","P4","P5","P6.1","P6.2","P7","P8","P9","P10","P11.a ","P11.b","P11.c","P11.d","P11.e","P11.f","P11.g","P11.h","P11.i","P11.j","P12.a","P12.b","P12.c","P12.d"]
[null,"Masculino","Contrata","Auxiliar","51 - 60","c.-","c.-","d.-","c.-","a.-","e.-","a.-","b.-","b.-","d.-","c.-","Más bien de acuerdo","Más bien en desacuerdo","Totalmente en desacuerdo","Totalmente en desacuerdo","Más bien en desacuerdo","Más bien de acuerdo","Totalmente de acuerdo","Más bien de acuerdo","Más bien de acuerdo","Totalmente de acuerdo","Más bien en desacuerdo","Totalmente de acuerdo","Totalmente en desacuerdo","Totalmente de acuerdo"]
[null,"Masculino","Honorario","Auxiliar","31- 40","d.-","e.-","b.-","b.-","a.-","c.-","e.-","b.-","b.-","c.-","e.-","Totalmente de acuerdo","Totalmente en desacuerdo","Más bien de acuerdo","Más bien en desacuerdo","Más bien en desacuerdo","Más bien de acuerdo","Totalmente de acuerdo","Más bien en desacuerdo","Totalmente en desacuerdo","Totalmente de acuerdo","Totalmente en desacuerdo","Totalmente de acuerdo","Más bien en desacuerdo","Totalmente de acuerdo"]
[null,"Masculino","Honorario","Auxiliar","51 - 60","c.-","a.-","a.-","a.-","b.-","a.-","d.-","b.-","c.-","d.-","a.-","Totalmente de acuerdo","Totalmente en desacuerdo","Totalmente en desacuerdo","Totalmente en desacuerdo","Totalmente de acuerdo","Totalmente de acuerdo","Más bien de acuerdo","Totalmente de acuerdo","Totalmente en desacuerdo","Totalmente de acuerdo","Totalmente en desacuerdo","Totalmente de acuerdo","Totalmente en desacuerdo","Totalmente de acuerdo"]
[null,"Masculino","Planta","Auxiliar","41 - 50","d.-","c.-","d.-","c.-","b.-","a.-","e.-","b.-","c.-","d.-","b.-","Lo ignoro","Más bien de acuerdo","Más bien en desacuerdo","Lo ignoro","Lo ignoro","Lo ignoro","Lo ignoro","Lo ignoro","Lo ignoro","Lo ignoro","No se pronuncia","No se pronuncia","No se pronuncia","No se pronuncia"]
[null,"Masculino","Planta","Auxiliar","51 - 60","d.-","c.-","d.-","a.-","b.-","a.-","e.-","b.-","b.-","d.-","e.-","Totalmente de acuerdo","Totalmente en desacuerdo","Totalmente en desacuerdo","Totalmente en desacuerdo","Totalmente de acuerdo","Totalmente de acuerdo","Totalmente de acuerdo","Más bien de acuerdo","Totalmente de acuerdo","Totalmente de acuerdo","Totalmente en desacuerdo","Totalmente de acuerdo","Totalmente en desacuerdo","Totalmente de acuerdo"]
[null,"Masculino","Planta","Auxiliar","31- 40","d.-","b.-","a.-","b.-","a.-","a.-","e.-","b.-","a.-","b.-","e.-","Más bien de acuerdo","Más bien de acuerdo","Más bien en desacuerdo","Totalmente en desacuerdo","Más bien en desacuerdo","Más bien de acuerdo","Más bien de acuerdo","Más bien de acuerdo","Totalmente en desacuerdo","Totalmente de acuerdo","Totalmente en desacuerdo","Totalmente de acuerdo","Más bien de acuerdo","Totalmente de acuerdo"]
[null,"Femenino","Planta","Auxiliar","41 - 50","d.-","c.-","a.-","c.-","a.-","a.-","c.-","b.-","a.-","d.-","b.-","Totalmente de acuerdo","Totalmente en desacuerdo","Totalmente en desacuerdo","Totalmente en desacuerdo","Totalmente en desacuerdo","Más bien en desacuerdo","Totalmente de acuerdo","Más bien en desacuerdo","Más bien de acuerdo","Totalmente de acuerdo","Totalmente en desacuerdo","Totalmente de acuerdo","Totalmente en desacuerdo","Totalmente de acuerdo"]
[null,"Masculino","Planta","Auxiliar","41 - 50","d.-","c.-","b.-","b.-","d.-","c.-","e.-","b.-","c.-","d.-","e.-","Totalmente de acuerdo","Más bien de acuerdo","Lo ignoro","Totalmente en desacuerdo","Totalmente en desacuerdo","Totalmente de acuerdo","Más bien en desacuerdo","Totalmente en desacuerdo","Totalmente en desacuerdo","Totalmente de acuerdo","Más bien en desacuerdo","Más bien de acuerdo","Más bien en desacuerdo","Totalmente de acuerdo"]
[null,"Masculino","Planta","Auxiliar","51 - 60","d.-","e.-","d.-","a.-","c.-","a.-","c.-","c.-","c.-","b.-","d.-","Totalmente de acuerdo","Totalmente de acuerdo","Más bien de acuerdo","Más bien de acuerdo","Totalmente de acuerdo","Más bien en desacuerdo","Totalmente de acuerdo","Totalmente de acuerdo","Más bien de acuerdo","Totalmente de acuerdo","Totalmente en desacuerdo","Totalmente de acuerdo","Totalmente en desacuerdo","Totalmente de acuerdo"]
[null,"Masculino","Honorario","Auxiliar","31- 40","d.-","c.-","d.-","a.-","a.-","d.-","e.-","b.-","b.-","a.-","b.-","Más bien de acuerdo","Totalmente en desacuerdo","Más bien de acuerdo","Totalmente en desacuerdo","Totalmente en desacuerdo","Más bien en desacuerdo","Totalmente de acuerdo","Totalmente de acuerdo","Totalmente de acuerdo","Totalmente de acuerdo","Totalmente en desacuerdo","Totalmente de acuerdo","Totalmente en desacuerdo","Totalmente de acuerdo"]
[null,"Masculino","Planta","Auxiliar","31- 40","d.-","c.-","d.-","d.-","c.-","c.-","e.-","d.-","c.-","d.-","e.-","Totalmente de acuerdo","Totalmente en desacuerdo","Totalmente en desacuerdo","Totalmente en desacuerdo","Totalmente de acuerdo","Totalmente de acuerdo","Totalmente de acuerdo","Totalmente de acuerdo","Totalmente de acuerdo","Totalmente de acuerdo","Totalmente en desacuerdo","Totalmente de acuerdo","Totalmente en desacuerdo","Totalmente de acuerdo"]
[null,"Masculino","Honorario","Auxiliar","41 - 50","d.-","a.-","d.-","c.-","b.-","e.-","a.-","c.-","c.-","d.-","b.-","Totalmente en desacuerdo","Totalmente en desacuerdo","Totalmente en desacuerdo","Totalmente en desacuerdo","Más bien en desacuerdo","Totalmente de acuerdo","Totalmente de acuerdo","Más bien en desacuerdo","Totalmente en desacuerdo","Totalmente de acuerdo","Más bien en desacuerdo","Totalmente de acuerdo","Más bien en desacuerdo","Totalmente de acuerdo"]
[null,"Masculino","Planta","Auxiliar","21 - 30","d.-","a.-","e.-","c.-","d.-","c.-","e.-","b.-","d.-","d.-","a.-","Totalmente en desacuerdo","Totalmente de acuerdo","Más bien de acuerdo","Totalmente en desacuerdo","Totalmente de acuerdo","Más bien de acuerdo","Más bien de acuerdo","Totalmente en desacuerdo","Totalmente en desacuerdo","Totalmente de acuerdo","Más bien en desacuerdo","Totalmente de acuerdo","Totalmente de acuerdo","Totalmente de acuerdo"]
[null,"Masculino","Planta","Auxiliar","41 - 50","c.-","a.-","b.-","b.-","b.-","d.-","e.-","a.-","b.-","d.-","e.-","Más bien en desacuerdo","Más bien en desacuerdo","Más bien en desacuerdo","Totalmente en desacuerdo","Más bien en desacuerdo","Más bien de acuerdo","Más bien en desacuerdo","Totalmente de acuerdo","Más bien de acuerdo","Totalmente de acuerdo","Totalmente en desacuerdo","Totalmente de acuerdo","Más bien en desacuerdo","Más bien de acuerdo"]
[null,"Masculino","Planta","Auxiliar","61 o más","f.-","e.-","e.-","b.-","d.-","b.-","c.-","d.-","b.-","d.-","c.-","Totalmente de acuerdo","Más bien en desacuerdo","Totalmente de acuerdo","Totalmente de acuerdo","Totalmente de acuerdo","Totalmente de acuerdo","Totalmente de acuerdo","Más bien en desacuerdo","Totalmente de acuerdo","Totalmente de acuerdo","Totalmente en desacuerdo","Más bien de acuerdo","Totalmente en desacuerdo","Totalmente de acuerdo"]
[null,"Masculino","Planta","Auxiliar","31- 40","d.-","e.-","d.-","b.-","c.-","a.-","e.-","b.-","b.-","c.-","c.-","Más bien de acuerdo","Más bien en desacuerdo","Más bien de acuerdo","Totalmente de acuerdo","Totalmente de acuerdo","Totalmente de acuerdo","Más bien de acuerdo","Más bien de acuerdo","Más bien de acuerdo","Totalmente de acuerdo","Más bien de acuerdo","Totalmente de acuerdo","Totalmente de acuerdo","Totalmente de acuerdo"]
[null,"Masculino","Contrata","Auxiliar","21 - 30","d.-","a.-","b.-","a.-","c.-","c.-","d.-","c.-","c.-","d.-","c.-","Totalmente de acuerdo","Más bien en desacuerdo","Más bien de acuerdo","Totalmente de acuerdo","Más bien en desacuerdo","Más bien en desacuerdo","Más bien de acuerdo","Más bien en desacuerdo","Más bien de acuerdo","Más bien en desacuerdo","Más bien de acuerdo","Más bien en desacuerdo","Totalmente en desacuerdo","Más bien de acuerdo"]
[null,"Masculino","Planta","Auxiliar","61 o más","d.-","a.-","a.-","c.-","a.-","c.-","e.-","b.-","a.-","d.-","a.-","Lo ignoro","Totalmente en desacuerdo","Totalmente en desacuerdo","Totalmente en desacuerdo","Totalmente en desacuerdo","Totalmente en desacuerdo","Totalmente en desacuerdo","Más bien en desacuerdo","Totalmente en desacuerdo","Totalmente en desacuerdo","Totalmente de acuerdo","Totalmente de acuerdo","Totalmente de acuerdo","Totalmente de acuerdo"]
[null,"Masculino","Planta","Auxiliar","31- 40","d.-","e.-","a.-","b.-","b.-","a.-","c.-","a.-","b.-","d.-","c.-","Totalmente de acuerdo","Totalmente en desacuerdo","Más bien de acuerdo","Totalmente de acuerdo","Más bien de acuerdo","Totalmente de acuerdo","Más bien en desacuerdo","Totalmente de acuerdo","Totalmente en desacuerdo","Totalmente en desacuerdo","Totalmente en desacuerdo","Totalmente de acuerdo","Totalmente en desacuerdo","Totalmente de acuerdo"]
[null,"Masculino","Planta","Auxiliar","31- 40","d.-","a.-","e.-","d.-","c.-","b.-","c.-","b.-","c.-","b.-","e.-","Totalmente en desacuerdo","Totalmente en desacuerdo","Totalmente en desacuerdo","Totalmente en desacuerdo","Totalmente en desacuerdo","Totalmente de acuerdo","Totalmente en desacuerdo","Totalmente en desacuerdo","Totalmente en desacuerdo","Totalmente de acuerdo","Totalmente de acuerdo","Totalmente de acuerdo","Totalmente en desacuerdo","Totalmente de acuerdo"]
[null,"Masculino","Planta","Auxiliar","41 - 50","b.-","a.-","a.-","a.-","c.-","c.-","e.-","b.-","c.-","c.-","c.-","Totalmente de acuerdo","Totalmente de acuerdo","Totalmente en desacuerdo","Más bien en desacuerdo","Más bien de acuerdo","Más bien de acuerdo","Más bien en desacuerdo","Más bien de acuerdo","Totalmente en desacuerdo","Totalmente de acuerdo","Totalmente de acuerdo","Totalmente de acuerdo","Más bien de acuerdo","Totalmente de acuerdo"]
[null,"Masculino","Contrata","Auxiliar","51 - 60","f.-","d.-","a.-","a.-","b.-","a.-","e.-","c.-","b.-","d.-","c.-","Totalmente de acuerdo","Más bien en desacuerdo","Totalmente de acuerdo","Totalmente en desacuerdo","Totalmente de acuerdo","Totalmente de acuerdo","Totalmente de acuerdo","Más bien de acuerdo","Más bien en desacuerdo","Totalmente de acuerdo","Totalmente en desacuerdo","Totalmente de acuerdo","Totalmente en desacuerdo","Totalmente de acuerdo"]
[null,"Masculino","Contrata","Auxiliar","61 o más","d.-","b.-","a.-","a.-","a.-","c.-","e.-","a.-","a.-","d.-","e.-","Totalmente de acuerdo","Más bien de acuerdo","Totalmente en desacuerdo","Más bien en desacuerdo","Totalmente en desacuerdo","Totalmente de acuerdo","Totalmente de acuerdo","Totalmente de acuerdo","Totalmente de acuerdo","Totalmente de acuerdo","Totalmente de acuerdo","Totalmente de acuerdo","Totalmente de acuerdo","Totalmente de acuerdo"]
[null,"Masculino","Planta","Auxiliar","51 - 60","b.-","e.-","e.-","d.-","a.-","b.-","c.-","a.-","d.-","c.-","f.-","Totalmente de acuerdo","Más bien de acuerdo","Más bien en desacuerdo","Más bien en desacuerdo","Totalmente de acuerdo","Lo ignoro","Totalmente de acuerdo","Lo ignoro","Totalmente en desacuerdo","Lo ignoro","No se pronuncia","No se pronuncia","No se pronuncia","No se pronuncia"]
[null,"Masculino","Planta","Auxiliar","61 o más","f.-","b.-","c.-","c.-","c.-","c.-","d.-","c.-","c.-","b.-","b.-","Totalmente de acuerdo","Totalmente en desacuerdo","Más bien de acuerdo","Totalmente en desacuerdo","Totalmente de acuerdo","Más bien de acuerdo","Más bien en desacuerdo","Más bien en desacuerdo","Más bien en desacuerdo","Totalmente de acuerdo","Más bien en desacuerdo","Totalmente de acuerdo","Totalmente de acuerdo","Totalmente de acuerdo"]
[null,"Masculino","Planta","Auxiliar","51 - 60","d.-","a.-","b.-","a.-","c.-","a.-","e.-","b.-","c.-","d.-","c.-","Más bien de acuerdo","Totalmente en desacuerdo","Totalmente en desacuerdo","Totalmente en desacuerdo","Totalmente en desacuerdo","Totalmente de acuerdo","Totalmente de acuerdo","Totalmente de acuerdo","Totalmente de acuerdo","Totalmente de acuerdo","Totalmente en desacuerdo","Totalmente de acuerdo","Totalmente en desacuerdo","Totalmente de acuerdo"]
[null,"Femenino","Contrata","Auxiliar","51 - 60","c.-","c.-","e.-","a.-","c.-","a.-","d.-","d.-","d.-","c.-","c.-","Totalmente en desacuerdo","Totalmente en desacuerdo","Lo ignoro","Totalmente en desacuerdo","Lo ignoro","Totalmente en desacuerdo","Lo ignoro","Totalmente en desacuerdo","Más bien de acuerdo","Más bien de acuerdo","Totalmente en desacuerdo","Totalmente de acuerdo","Totalmente de acuerdo","Totalmente de acuerdo"]
[null,"Masculino","Planta","Auxiliar","21 - 30","d.-","a.-","d.-","c.-","a.-","c.-","e.-","b.-","b.-","d.-","e.-","Totalmente de acuerdo","Totalmente en desacuerdo","Totalmente de acuerdo","Lo ignoro","Más bien de acuerdo","Totalmente de acuerdo","Totalmente en desacuerdo","Más bien de acuerdo","Lo ignoro","Totalmente de acuerdo","Totalmente en desacuerdo","Totalmente de acuerdo","Totalmente en desacuerdo","Totalmente de acuerdo"]
[null,"Masculino","Planta","Auxiliar","51 - 60","d.-","a.-","b.-","a.-","a.-","a.-","b.-","b.-","b.-","d.-","c.-","Totalmente de acuerdo","Más bien en desacuerdo","Totalmente en desacuerdo","Totalmente en desacuerdo","Totalmente en desacuerdo","Totalmente de acuerdo","Totalmente de acuerdo","Más bien en desacuerdo","Totalmente de acuerdo","Totalmente de acuerdo","Totalmente de acuerdo","Totalmente de acuerdo","Más bien en desacuerdo","Totalmente de acuerdo"]
[null,"Masculino","Planta","Auxiliar","61 o más","c.-","a.-","a.-","a.-","a.-","b.-","e.-","a.-","a.-","c.-","a.-","Más bien de acuerdo","Más bien en desacuerdo","Más bien en desacuerdo","Totalmente en desacuerdo","Más bien en desacuerdo","Más bien en desacuerdo","Más bien en desacuerdo","Más bien en desacuerdo","Totalmente de acuerdo","Más bien en desacuerdo","Totalmente en desacuerdo","Totalmente de acuerdo","Más bien en desacuerdo","Más bien en desacuerdo"]
[null,"Femenino","Contrata","Administrativo","31- 40","d.-","b.-","e.-","c.-","a.-","e.-","c.-","a.-","c.-","d.-","d.-","Totalmente de acuerdo","Más bien de acuerdo","Más bien de acuerdo","Totalmente en desacuerdo","Totalmente en desacuerdo","Lo ignoro","Lo ignoro","Lo ignoro","Lo ignoro","Lo ignoro","No se pronuncia","No se pronuncia","No se pronuncia","No se pronuncia"]
[null,"Femenino","Planta","Administrativo","51 - 60","c.-","a.-","d.-","c.-","c.-","a.-","e.-","b.-","c.-","c.-","e.-","Totalmente de acuerdo","Más bien en desacuerdo","Totalmente en desacuerdo","Totalmente en desacuerdo","Totalmente de acuerdo","Totalmente en desacuerdo","Totalmente en desacuerdo","Totalmente de acuerdo","Más bien en desacuerdo","Totalmente en desacuerdo","Totalmente de acuerdo","Más bien en desacuerdo","Más bien en desacuerdo","Más bien en desacuerdo"]
[null,"Femenino","Planta","Administrativo","41 - 50","c.-","c.-","d.-","a.-","b.-","c.-","e.-","b.-","c.-","d.-","e.-","Más bien en desacuerdo","Más bien en desacuerdo","Más bien de acuerdo","Totalmente en desacuerdo","Totalmente en desacuerdo","Más bien en desacuerdo","Totalmente en desacuerdo","Más bien en desacuerdo","Más bien de acuerdo","Más bien de acuerdo","No se pronuncia","Más bien de acuerdo","Totalmente de acuerdo","Totalmente de acuerdo"]
[null,"Femenino","Planta","Administrativo","41 - 50","c.-","c.-","a.-","a.-","a.-","e.-","a.-","a.-","a.-","d.-","c.-","Totalmente de acuerdo","Más bien en desacuerdo","Más bien en desacuerdo","Más bien en desacuerdo","Más bien en desacuerdo","Más bien de acuerdo","Más bien de acuerdo","Más bien de acuerdo","Totalmente de acuerdo","Totalmente de acuerdo","Más bien en desacuerdo","Totalmente de acuerdo","Más bien en desacuerdo","Totalmente de acuerdo"]
[null,"Masculino","Planta","Administrativo","41 - 50","e.-","c.-","d.-","b.-","c.-","c.-","e.-","c.-","c.-","d.-","b.-","Más bien en desacuerdo","Totalmente en desacuerdo","Totalmente en desacuerdo","Totalmente en desacuerdo","Más bien de acuerdo","Más bien de acuerdo","Más bien de acuerdo","Más bien de acuerdo","Más bien de acuerdo","Totalmente de acuerdo","Más bien en desacuerdo","Totalmente de acuerdo","Totalmente en desacuerdo","Totalmente de acuerdo"]
[null,"Masculino","Contrata","Administrativo","31- 40","c.-","c.-","d.-","b.-","a.-","c.-","e.-","b.-","b.-","b.-","c.-","Totalmente de acuerdo","Más bien en desacuerdo","Más bien en desacuerdo","Totalmente en desacuerdo","Más bien de acuerdo","Totalmente de acuerdo","Más bien de acuerdo","Más bien de acuerdo","Más bien de acuerdo","Más bien de acuerdo","Más bien en desacuerdo","Más bien en desacuerdo","Más bien de acuerdo","Más bien de acuerdo"]
[null,"Femenino","Contrata","Administrativo","31- 40","c.-","a.-","d.-","a.-","c.-","c.-","e.-","d.-","c.-","d.-","c.-","Totalmente de acuerdo","Totalmente en desacuerdo","Totalmente en desacuerdo","Totalmente en desacuerdo","Lo ignoro","Más bien de acuerdo","Totalmente de acuerdo","Más bien de acuerdo","Totalmente de acuerdo","Totalmente de acuerdo","Totalmente de acuerdo","Totalmente de acuerdo","Totalmente en desacuerdo","Totalmente de acuerdo"]
[null,"Masculino","Honorario","Administrativo","41 - 50","c.-","a.-","e.-","b.-","c.-","c.-","e.-","b.-","c.-","d.-","b.-","Más bien de acuerdo","Totalmente de acuerdo","Más bien de acuerdo","Más bien en desacuerdo","Más bien en desacuerdo","Más bien de acuerdo","Más bien de acuerdo","Más bien de acuerdo","Más bien de acuerdo","Más bien de acuerdo","Más bien de acuerdo","Más bien de acuerdo","Más bien de acuerdo","Más bien de acuerdo"]
[null,"Femenino","Honorario","Administrativo","31- 40","d.-","c.-","d.-","b.-","a.-","c.-","e.-","a.-","c.-","d.-","c.-","Más bien de acuerdo","Totalmente en desacuerdo","Totalmente de acuerdo","Totalmente en desacuerdo","Totalmente en desacuerdo","Más bien en desacuerdo","Totalmente en desacuerdo","Más bien en desacuerdo","Más bien de acuerdo","Totalmente de acuerdo","Totalmente en desacuerdo","Totalmente de acuerdo","Más bien en desacuerdo","Más bien de acuerdo"]
[null,"Femenino","Planta","Administrativo","31- 40","d.-","c.-","d.-","a.-","c.-","a.-","e.-","d.-","c.-","d.-","a.-","Totalmente de acuerdo","Totalmente en desacuerdo","Totalmente en desacuerdo","Más bien en desacuerdo","Totalmente en desacuerdo","Más bien de acuerdo","Totalmente de acuerdo","Totalmente de acuerdo","Totalmente de acuerdo","Totalmente de acuerdo","Totalmente en desacuerdo","Totalmente de acuerdo","Totalmente de acuerdo","Totalmente de acuerdo"]
[null,"Masculino","Contrata","Administrativo","31- 40","c.-","c.-","d.-","b.-","b.-","c.-","d.-","a.-","c.-","d.-","c.-","Más bien de acuerdo","Más bien en desacuerdo","Totalmente de acuerdo","Totalmente en desacuerdo","Totalmente en desacuerdo","Totalmente en desacuerdo","Más bien en desacuerdo","Más bien en desacuerdo","Más bien de acuerdo","Totalmente de acuerdo","Más bien en desacuerdo","Totalmente de acuerdo","Totalmente en desacuerdo","Totalmente en desacuerdo"]
[null,"Femenino","Planta","Administrativo","41 - 50","d.-","c.-","e.-","b.-","b.-","c.-","e.-","b.-","b.-","d.-","c.-","Más bien en desacuerdo","Totalmente en desacuerdo","Totalmente en desacuerdo","Totalmente en desacuerdo","Más bien en desacuerdo","Más bien de acuerdo","Más bien de acuerdo","Totalmente en desacuerdo","Totalmente en desacuerdo","Totalmente de acuerdo","Totalmente de acuerdo","Totalmente de acuerdo","Totalmente de acuerdo","Totalmente de acuerdo"]
[null,"Masculino","Honorario","Administrativo","41 - 50","e.-","c.-","b.-","a.-","a.-","e.-","c.-","a.-","a.-","d.-","c.-","Totalmente de acuerdo","Totalmente de acuerdo","Más bien de acuerdo","Totalmente en desacuerdo","Totalmente en desacuerdo","Totalmente de acuerdo","Totalmente en desacuerdo","Totalmente de acuerdo","Totalmente en desacuerdo","Totalmente de acuerdo","Totalmente de acuerdo","Totalmente de acuerdo","Más bien en desacuerdo","Más bien en desacuerdo"]
[null,"Masculino","Planta","Administrativo","31- 40","c.-","c.-","d.-","d.-","a.-","a.-","d.-","b.-","b.-","d.-","c.-","Más bien de acuerdo","Totalmente en desacuerdo","Totalmente de acuerdo","Más bien en desacuerdo","Más bien de acuerdo","Más bien de acuerdo","Más bien en desacuerdo","Más bien en desacuerdo","Más bien de acuerdo","Más bien de acuerdo","Totalmente en desacuerdo","Más bien de acuerdo","Más bien en desacuerdo","Totalmente de acuerdo"]
[null,"Femenino","Planta","Administrativo","41 - 50","d.-","a.-","d.-","a.-","b.-","c.-","e.-","b.-","b.-","d.-","e.-","Más bien en desacuerdo","Más bien de acuerdo","Más bien en desacuerdo","Más bien en desacuerdo","Más bien en desacuerdo","Más bien de acuerdo","Más bien de acuerdo","Más bien de acuerdo","Más bien en desacuerdo","Más bien de acuerdo","Más bien en desacuerdo","Más bien de acuerdo","Más bien de acuerdo","Más bien de acuerdo"]
[null,"Femenino","Honorario","Administrativo","41 - 50","c.-","d.-","a.-","b.-","a.-","a.-","b.-","a.-","a.-","d.-","b.-","Más bien de acuerdo","Totalmente en desacuerdo","Totalmente en desacuerdo","Totalmente en desacuerdo","Totalmente en desacuerdo","Totalmente de acuerdo","Totalmente de acuerdo","Totalmente de acuerdo","Totalmente en desacuerdo","Totalmente de acuerdo","Totalmente en desacuerdo","Más bien de acuerdo","Totalmente en desacuerdo","Totalmente de acuerdo"]
[null,"Femenino","Honorario","Administrativo","31- 40","d.-","c.-","b.-","a.-","c.-","c.-","e.-","b.-","c.-","d.-","e.-","Totalmente de acuerdo","Más bien en desacuerdo","Más bien de acuerdo","Más bien de acuerdo","Más bien en desacuerdo","Más bien en desacuerdo","Más bien de acuerdo","Más bien en desacuerdo","Totalmente de acuerdo","Más bien de acuerdo","Más bien en desacuerdo","Totalmente de acuerdo","Más bien en desacuerdo","Más bien en desacuerdo"]
[null,"Femenino","Planta","Administrativo","51 - 60","c.-","c.-","d.-","b.-","a.-","c.-","e.-","b.-","a.-","d.-","b.-","Más bien en desacuerdo","Más bien en desacuerdo","Totalmente en desacuerdo","Totalmente en desacuerdo","Más bien en desacuerdo","Más bien de acuerdo","Totalmente de acuerdo","Más bien en desacuerdo","Más bien de acuerdo","Totalmente de acuerdo","Totalmente en desacuerdo","Totalmente de acuerdo","Más bien en desacuerdo","Totalmente de acuerdo"]
[null,"Femenino","Planta","Administrativo","31- 40","d.-","d.-","d.-","d.-","a.-","c.-","e.-","d.-","c.-","d.-","d.-","Totalmente en desacuerdo","Más bien en desacuerdo","Totalmente en desacuerdo","Totalmente en desacuerdo","Totalmente en desacuerdo","Más bien en desacuerdo","Más bien en desacuerdo","Totalmente en desacuerdo","Totalmente en desacuerdo","Totalmente de acuerdo","Totalmente en desacuerdo","Totalmente de acuerdo","No se pronuncia","Totalmente de acuerdo"]
[null,"Femenino","Contrata","Administrativo","31- 40","d.-","b.-","b.-","b.-","b.-","a.-","e.-","b.-","a.-","d.-","c.-","Más bien en desacuerdo","Más bien en desacuerdo","Totalmente en desacuerdo","Totalmente en desacuerdo","Totalmente en desacuerdo","Más bien en desacuerdo","Más bien en desacuerdo","Más bien en desacuerdo","Más bien de acuerdo","Totalmente de acuerdo","Totalmente en desacuerdo","Totalmente de acuerdo","Totalmente en desacuerdo","Más bien en desacuerdo"]
[null,"Femenino","Planta","Administrativo","41 - 50","c.-","c.-","d.-","b.-","a.-","c.-","e.-","a.-","c.-","d.-","b.-","Totalmente de acuerdo","Más bien en desacuerdo","Más bien de acuerdo","Totalmente de acuerdo","Más bien de acuerdo","Más bien de acuerdo","Más bien de acuerdo","Más bien de acuerdo","Más bien de acuerdo","Totalmente de acuerdo","Más bien en desacuerdo","Más bien de acuerdo","Más bien de acuerdo","Más bien de acuerdo"]
[null,"Masculino","Honorario","Administrativo","21 - 30","a.-","c.-","b.-","b.-","c.-","c.-","e.-","a.-","a.-","d.-","e.-","Totalmente de acuerdo","Totalmente en desacuerdo","Más bien en desacuerdo","Totalmente en desacuerdo","Más bien en desacuerdo","Totalmente de acuerdo","Totalmente de acuerdo","Más bien en desacuerdo","Totalmente de acuerdo","Totalmente de acuerdo","Totalmente en desacuerdo","Más bien de acuerdo","Totalmente de acuerdo","Totalmente de acuerdo"]
[null,"Femenino","Planta","Administrativo","61 o más","f.-","e.-","d.-","c.-","c.-","c.-","e.-","c.-","c.-","d.-","e.-","Lo ignoro","Más bien en desacuerdo","Totalmente en desacuerdo","Totalmente en desacuerdo","Más bien de acuerdo","Más bien de acuerdo","Más bien de acuerdo","Más bien de acuerdo","Más bien de acuerdo","Totalmente de acuerdo","Totalmente en desacuerdo","Totalmente de acuerdo","Más bien de acuerdo","Totalmente de acuerdo"]
[null,"Masculino","Planta","Administrativo","51 - 60","d.-","a.-","c.-","c.-","c.-","a.-","e.-","b.-","b.-","a.-","c.-","Totalmente en desacuerdo","Totalmente en desacuerdo","Totalmente en desacuerdo","Totalmente en desacuerdo","Más bien en desacuerdo","Totalmente en desacuerdo","Más bien de acuerdo","Más bien en desacuerdo","Totalmente en desacuerdo","Más bien en desacuerdo","Totalmente en desacuerdo","Más bien de acuerdo","Totalmente en desacuerdo","Totalmente de acuerdo"]
[null,"Femenino","Honorario","Administrativo","31- 40","d.-","c.-","c.-","c.-","c.-","a.-","e.-","d.-","c.-","d.-","e.-","Más bien en desacuerdo","Totalmente en desacuerdo","Más bien en desacuerdo","Totalmente en desacuerdo","Más bien en desacuerdo","Totalmente en desacuerdo","Más bien en desacuerdo","Más bien en desacuerdo","Más bien en desacuerdo","Totalmente de acuerdo","Más bien en desacuerdo","Totalmente de acuerdo","Más bien en desacuerdo","Totalmente de acuerdo"]
[null,"Femenino","Honorario","Administrativo","21 - 30","e.-","a.-","b.-","b.-","b.-","c.-","e.-","b.-","b.-","a.-","e.-","Más bien de acuerdo","Totalmente de acuerdo","Totalmente de acuerdo","Más bien de acuerdo","Más bien en desacuerdo","Más bien en desacuerdo","Más bien en desacuerdo","Más bien en desacuerdo","Totalmente de acuerdo","Totalmente de acuerdo","Más bien en desacuerdo","Totalmente de acuerdo","Totalmente de acuerdo","Totalmente de acuerdo"]
[null,"Femenino","Honorario","Administrativo","31- 40","b.-","e.-","b.-","b.-","b.-","a.-","e.-","b.-","c.-","d.-","b.-","Más bien de acuerdo","Más bien en desacuerdo","Más bien en desacuerdo","Más bien en desacuerdo","Más bien en desacuerdo","Más bien de acuerdo","Totalmente de acuerdo","Más bien en desacuerdo","Totalmente de acuerdo","Totalmente de acuerdo","No se pronuncia","Totalmente de acuerdo","No se pronuncia","Totalmente de acuerdo"]
[null,"Femenino","Honorario","Administrativo","21 - 30","d.-","c.-","a.-","c.-","b.-","a.-","e.-","b.-","c.-","d.-","e.-","Más bien de acuerdo","Más bien en desacuerdo","Totalmente en desacuerdo","Totalmente en desacuerdo","Más bien de acuerdo","Más bien de acuerdo","Más bien en desacuerdo","Más bien en desacuerdo","Más bien en desacuerdo","Más bien de acuerdo","Totalmente en desacuerdo","Más bien de acuerdo","Totalmente en desacuerdo","Totalmente de acuerdo"]
[null,"Femenino","Honorario","Administrativo","31- 40","d.-","c.-","e.-","d.-","c.-","c.-","e.-","b.-","c.-","d.-","e.-","Totalmente de acuerdo","Más bien en desacuerdo","Totalmente en desacuerdo","Totalmente de acuerdo","Más bien en desacuerdo","Totalmente de acuerdo","Más bien en desacuerdo","Más bien en desacuerdo","Totalmente de acuerdo","Totalmente de acuerdo","Más bien en desacuerdo","Totalmente de acuerdo","Totalmente de acuerdo","Totalmente de acuerdo"]
[null,"Masculino","Honorario","Administrativo","31- 40","b.-","c.-","b.-","c.-","b.-","e.-","c.-","b.-","b.-","d.-","e.-","Totalmente en desacuerdo","Totalmente en desacuerdo","Totalmente en desacuerdo","Totalmente en desacuerdo","Más bien en desacuerdo","Totalmente de acuerdo","Totalmente de acuerdo","Lo ignoro","Más bien en desacuerdo","Totalmente de acuerdo","Totalmente de acuerdo","Más bien de acuerdo","Totalmente de acuerdo","Totalmente de acuerdo"]
[null,"Masculino","Honorario","Administrativo","21 - 30","c.-","a.-","b.-","a.-","d.-","c.-","e.-","b.-","c.-","d.-","c.-","Totalmente en desacuerdo","Más bien de acuerdo","Totalmente en desacuerdo","Totalmente en desacuerdo","Más bien en desacuerdo","Más bien de acuerdo","Más bien en desacuerdo","Más bien en desacuerdo","Más bien en desacuerdo","Totalmente de acuerdo","Totalmente en desacuerdo","Totalmente de acuerdo","Más bien de acuerdo","Totalmente de acuerdo"]
[null,"Femenino","Honorario","Administrativo","41 - 50","d.-","c.-","e.-","c.-","a.-","d.-","e.-","b.-","b.-","d.-","c.-","Más bien de acuerdo","Más bien de acuerdo","Más bien en desacuerdo","Totalmente en desacuerdo","Totalmente de acuerdo","Totalmente de acuerdo","Totalmente de acuerdo","Totalmente de acuerdo","Totalmente de acuerdo","Totalmente de acuerdo","No se pronuncia","Más bien en desacuerdo","Totalmente en desacuerdo","Totalmente de acuerdo"]
[null,"Femenino","Planta","Administrativo","41 - 50","d.-","a.-","a.-","a.-","b.-","c.-","e.-","b.-","b.-","d.-","e.-","Más bien en desacuerdo","Totalmente en desacuerdo","Totalmente en desacuerdo","Totalmente en desacuerdo","Más bien en desacuerdo","Más bien en desacuerdo","Más bien de acuerdo","Más bien en desacuerdo","Más bien de acuerdo","Más bien de acuerdo","Totalmente en desacuerdo","Más bien de acuerdo","Más bien en desacuerdo","Más bien de acuerdo"]
[null,"Femenino","Planta","Administrativo","21 - 30","d.-","e.-","d.-","b.-","a.-","a.-","c.-","a.-","a.-","d.-","c.-","Más bien en desacuerdo","Más bien de acuerdo","Más bien de acuerdo","Totalmente en desacuerdo","Lo ignoro","Más bien de acuerdo","Más bien en desacuerdo","Más bien en desacuerdo","Más bien de acuerdo","Totalmente de acuerdo","Más bien en desacuerdo","Totalmente de acuerdo","Más bien de acuerdo","Más bien de acuerdo"]
[null,"Femenino","Honorario","Administrativo","31- 40","b.-","b.-","d.-","d.-","c.-","a.-","e.-","b.-","c.-","d.-","e.-","Más bien de acuerdo","Más bien en desacuerdo","Totalmente en desacuerdo","Totalmente en desacuerdo","Más bien de acuerdo","Totalmente de acuerdo","Totalmente de acuerdo","Más bien de acuerdo","Más bien de acuerdo","Totalmente de acuerdo","Totalmente en desacuerdo","Totalmente de acuerdo","Totalmente en desacuerdo","Más bien en desacuerdo"]
[null,"Masculino","Planta","Administrativo","31- 40","d.-","a.-","b.-","a.-","b.-","b.-","e.-","b.-","c.-","d.-","a.-","Más bien de acuerdo","Totalmente de acuerdo","Totalmente en desacuerdo","Totalmente en desacuerdo","Más bien en desacuerdo","Totalmente de acuerdo","Totalmente en desacuerdo","Lo ignoro","Más bien en desacuerdo","Totalmente de acuerdo","Totalmente en desacuerdo","Más bien en desacuerdo","Totalmente de acuerdo","Totalmente de acuerdo"]
[null,"Masculino","Planta","Administrativo","41 - 50","d.-","c.-","a.-","b.-","a.-","b.-","e.-","d.-","c.-","b.-","e.-","Más bien de acuerdo","Totalmente en desacuerdo","Totalmente en desacuerdo","Totalmente en desacuerdo","Más bien de acuerdo","Más bien de acuerdo","Más bien de acuerdo","Totalmente de acuerdo","Más bien de acuerdo","Totalmente de acuerdo","Totalmente en desacuerdo","Totalmente de acuerdo","Totalmente en desacuerdo","Totalmente de acuerdo"]
[null,"Masculino","Honorario","Administrativo","31- 40","c.-","c.-","d.-","c.-","b.-","c.-","e.-","b.-","b.-","d.-","e.-","Más bien de acuerdo","Totalmente en desacuerdo","Totalmente en desacuerdo","Totalmente en desacuerdo","Más bien de acuerdo","Totalmente en desacuerdo","Totalmente en desacuerdo","Más bien en desacuerdo","Más bien de acuerdo","Totalmente de acuerdo","Totalmente en desacuerdo","Totalmente de acuerdo","Totalmente en desacuerdo","Más bien en desacuerdo"]
[null,"Femenino","Honorario","Administrativo","51 - 60","d.-","c.-","d.-","a.-","b.-","c.-","e.-","b.-","a.-","d.-","b.-","Totalmente de acuerdo","Más bien de acuerdo","Más bien de acuerdo","Totalmente en desacuerdo","Más bien de acuerdo","Totalmente de acuerdo","Totalmente de acuerdo","Más bien de acuerdo","Más bien en desacuerdo","Totalmente de acuerdo","Totalmente de acuerdo","Totalmente de acuerdo","Totalmente de acuerdo","Totalmente de acuerdo"]
[null,"Femenino","Honorario","Administrativo","21 - 30","c.-","c.-","d.-","d.-","b.-","c.-","d.-","b.-","b.-","d.-","c.-","Totalmente de acuerdo","Más bien en desacuerdo","Totalmente de acuerdo","Totalmente en desacuerdo","Totalmente en desacuerdo","Más bien en desacuerdo","Totalmente en desacuerdo","Más bien de acuerdo","Totalmente en desacuerdo","Totalmente de acuerdo","Totalmente en desacuerdo","Totalmente de acuerdo","Más bien en desacuerdo","Más bien en desacuerdo"]
[null,"Femenino","Planta","Administrativo","31- 40","d.-","b.-","d.-","a.-","d.-","c.-","e.-","b.-","c.-","b.-","c.-","Totalmente de acuerdo","Totalmente en desacuerdo","Totalmente en desacuerdo","Totalmente en desacuerdo","Totalmente en desacuerdo","Totalmente de acuerdo","Totalmente de acuerdo","Totalmente de acuerdo","Lo ignoro","Totalmente de acuerdo","Totalmente en desacuerdo","Totalmente en desacuerdo","Totalmente en desacuerdo","Totalmente de acuerdo"]
[null,"Masculino","Planta","Administrativo","41 - 50","c.-","c.-","d.-","d.-","b.-","a.-","e.-","a.-","b.-","a.-","d.-","Totalmente de acuerdo","Más bien en desacuerdo","Totalmente en desacuerdo","Totalmente en desacuerdo","Lo ignoro","Más bien de acuerdo","Totalmente de acuerdo","Más bien en desacuerdo","Más bien en desacuerdo","Totalmente de acuerdo","Totalmente en desacuerdo","Totalmente de acuerdo","Totalmente en desacuerdo","Totalmente de acuerdo"]
[null,"Masculino","Planta","Administrativo","41 - 50","d.-","c.-","c.-","a.-","b.-","e.-","c.-","b.-","b.-","c.-","f.-","Totalmente de acuerdo","Totalmente de acuerdo","Totalmente de acuerdo","Más bien de acuerdo","Más bien de acuerdo","Totalmente de acuerdo","Lo ignoro","Más bien de acuerdo","Más bien en desacuerdo","Totalmente de acuerdo","Totalmente de acuerdo","Totalmente de acuerdo","Totalmente de acuerdo","Más bien de acuerdo"]
[null,"Masculino","Planta","Administrativo","51 - 60","d.-","a.-","d.-","d.-","b.-","c.-","e.-","b.-","b.-","d.-","c.-","Totalmente de acuerdo","Totalmente en desacuerdo","Totalmente en desacuerdo","Más bien de acuerdo","Totalmente en desacuerdo","Totalmente en desacuerdo","Totalmente en desacuerdo","Totalmente en desacuerdo","Más bien de acuerdo","Totalmente de acuerdo","Totalmente en desacuerdo","Totalmente de acuerdo","Más bien en desacuerdo","Totalmente de acuerdo"]
[null,"Masculino","Planta","Administrativo","41 - 50","d.-","a.-","d.-","a.-","c.-","c.-","e.-","b.-","b.-","c.-","e.-","Totalmente de acuerdo","Totalmente en desacuerdo","Más bien de acuerdo","Totalmente de acuerdo","Totalmente de acuerdo","Totalmente de acuerdo","Más bien de acuerdo","Lo ignoro","Totalmente de acuerdo","Totalmente de acuerdo","Totalmente de acuerdo","Totalmente de acuerdo","Más bien de acuerdo","Totalmente de acuerdo"]
[null,"Masculino","Honorario","Administrativo","61 o más","d.-","a.-","a.-","a.-","b.-","c.-","e.-","b.-","b.-","c.-","e.-","Totalmente de acuerdo","Totalmente en desacuerdo","Totalmente en desacuerdo","Totalmente en desacuerdo","Totalmente en desacuerdo","Totalmente de acuerdo","Totalmente de acuerdo","Totalmente de acuerdo","Más bien de acuerdo","Totalmente de acuerdo","Totalmente en desacuerdo","Totalmente de acuerdo","Totalmente en desacuerdo","Totalmente de acuerdo"]
[null,"Masculino","Honorario","Administrativo","61 o más","d.-","a.-","a.-","a.-","a.-","c.-","e.-","a.-","a.-","d.-","e.-","Totalmente de acuerdo","Totalmente de acuerdo","Totalmente de acuerdo","Totalmente de acuerdo","Totalmente de acuerdo","Totalmente de acuerdo","Totalmente de acuerdo","Totalmente de acuerdo","Totalmente de acuerdo","Totalmente de acuerdo","Totalmente de acuerdo","Totalmente de acuerdo","Totalmente de acuerdo","Totalmente de acuerdo"]
[null,"Masculino","Planta","Administrativo","31- 40","d.-","c.-","a.-","c.-","b.-","a.-","b.-","b.-","b.-","d.-","e.-","Más bien de acuerdo","Totalmente en desacuerdo","Totalmente en desacuerdo","Totalmente en desacuerdo","Más bien de acuerdo","Más bien de acuerdo","Totalmente de acuerdo","Más bien de acuerdo","Más bien en desacuerdo","Totalmente de acuerdo","Totalmente de acuerdo","Totalmente de acuerdo","Totalmente en desacuerdo","Totalmente de acuerdo"]
[null,"Femenino","Planta","Administrativo","31- 40","d.-","a.-","e.-","d.-","c.-","a.-","e.-","c.-","c.-","d.-","e.-","Más bien en desacuerdo","Totalmente en desacuerdo","Más bien en desacuerdo","Lo ignoro","Totalmente en desacuerdo","Totalmente en desacuerdo","Totalmente en desacuerdo","Lo ignoro","Totalmente en desacuerdo","Más bien de acuerdo","Totalmente en desacuerdo","Totalmente en desacuerdo","Totalmente en desacuerdo","Totalmente de acuerdo"]
[null,"Masculino","Planta","Administrativo","61 o más","c.-","c.-","c.-","c.-","b.-","c.-","e.-","b.-","b.-","d.-","c.-","Totalmente de acuerdo","Más bien de acuerdo","Totalmente en desacuerdo","Totalmente en desacuerdo","Más bien en desacuerdo","Más bien en desacuerdo","Más bien en desacuerdo","Totalmente en desacuerdo","Más bien en desacuerdo","Totalmente de acuerdo","Totalmente en desacuerdo","Totalmente de acuerdo","Más bien en desacuerdo","Más bien en desacuerdo"]
[null,"Femenino","Planta","Administrativo","51 - 60","d.-","a.-","a.-","b.-","c.-","a.-","e.-","b.-","c.-","d.-","e.-","Totalmente de acuerdo","Más bien en desacuerdo","Totalmente en desacuerdo","Totalmente en desacuerdo","Más bien en desacuerdo","Totalmente de acuerdo","Más bien de acuerdo","Totalmente de acuerdo","Más bien de acuerdo","Totalmente de acuerdo","Totalmente en desacuerdo","Totalmente de acuerdo","Totalmente de acuerdo","Totalmente de acuerdo"]
[null,"Femenino","Contrata","Administrativo","51 - 60","d.-","c.-","d.-","c.-","c.-","a.-","e.-","b.-","a.-","d.-","e.-","Más bien en desacuerdo","Totalmente en desacuerdo","Totalmente en desacuerdo","Totalmente en desacuerdo","Totalmente en desacuerdo","Más bien de acuerdo","Totalmente de acuerdo","Más bien en desacuerdo","Más bien en desacuerdo","Totalmente de acuerdo","Totalmente en desacuerdo","Totalmente de acuerdo","Totalmente en desacuerdo","Totalmente de acuerdo"]
[null,"Masculino","Planta","Administrativo","31- 40","c.-","c.-","d.-","c.-","c.-","a.-","c.-","d.-","c.-","b.-","b.-","Totalmente en desacuerdo","Totalmente en desacuerdo","Totalmente en desacuerdo","Totalmente de acuerdo","Totalmente de acuerdo","Totalmente de acuerdo","Totalmente de acuerdo","Más bien de acuerdo","Totalmente en desacuerdo","Totalmente de acuerdo","Totalmente de acuerdo","Totalmente de acuerdo","Totalmente de acuerdo","Totalmente de acuerdo"]
[null,"Femenino","Planta","Administrativo","41 - 50","c.-","c.-","a.-","a.-","a.-","c.-","d.-","b.-","a.-","b.-","c.-","Totalmente en desacuerdo","Totalmente en desacuerdo","Totalmente en desacuerdo","Totalmente en desacuerdo","Totalmente en desacuerdo","Totalmente en desacuerdo","Totalmente en desacuerdo","Más bien de acuerdo","Totalmente de acuerdo","Totalmente de acuerdo","Totalmente en desacuerdo","Totalmente de acuerdo","Totalmente en desacuerdo","Totalmente de acuerdo"]
[null,"Femenino","Planta","Administrativo","51 - 60","d.-","a.-","d.-","a.-","d.-","a.-","e.-","b.-","c.-","d.-","e.-","Más bien de acuerdo","Más bien en desacuerdo","Más bien en desacuerdo","Más bien en desacuerdo","Más bien en desacuerdo","Más bien de acuerdo","Más bien de acuerdo","Más bien de acuerdo","Más bien de acuerdo","Totalmente de acuerdo","Más bien en desacuerdo","Más bien de acuerdo","Más bien en desacuerdo","Más bien en desacuerdo"]
[null,"Masculino","Planta","Administrativo","41 - 50","b.-","a.-","c.-","c.-","b.-","c.-","e.-","b.-","b.-","d.-","c.-","Totalmente de acuerdo","Más bien en desacuerdo","Más bien en desacuerdo","Más bien en desacuerdo","Más bien en desacuerdo","Totalmente de acuerdo","Más bien en desacuerdo","Más bien en desacuerdo","Más bien de acuerdo","Totalmente de acuerdo","Totalmente en desacuerdo","Totalmente de acuerdo","Totalmente en desacuerdo","Más bien en desacuerdo"]
[null,"Masculino","Honorario","Administrativo","21 - 30","b.-","a.-","d.-","d.-","c.-","d.-","e.-","d.-","c.-","c.-","f.-","Totalmente en desacuerdo","Totalmente en desacuerdo","Totalmente en desacuerdo","Totalmente en desacuerdo","Totalmente de acuerdo","Totalmente de acuerdo","Totalmente de acuerdo","Totalmente de acuerdo","Totalmente de acuerdo","Totalmente de acuerdo","Totalmente de acuerdo","Más bien en desacuerdo","Más bien en desacuerdo","Más bien en desacuerdo"]
[null,"Femenino","Honorario","Administrativo","51 - 60","c.-","c.-","d.-","c.-","b.-","c.-","e.-","c.-","c.-","d.-","e.-","Totalmente de acuerdo","Más bien de acuerdo","Más bien en desacuerdo","Totalmente de acuerdo","Más bien en desacuerdo","Más bien en desacuerdo","Totalmente de acuerdo","Totalmente de acuerdo","Más bien de acuerdo","Totalmente de acuerdo","Totalmente en desacuerdo","Totalmente de acuerdo","Más bien en desacuerdo","Totalmente de acuerdo"]
[null,"Femenino","Honorario","Administrativo","41 - 50","c.-","c.-","d.-","b.-","c.-","a.-","c.-","b.-","c.-","d.-","c.-","Más bien de acuerdo","Más bien de acuerdo","Más bien de acuerdo","Más bien de acuerdo","Más bien de acuerdo","Más bien de acuerdo","Más bien de acuerdo","Más bien de acuerdo","Más bien de acuerdo","Más bien de acuerdo","Más bien de acuerdo","Más bien de acuerdo","Más bien de acuerdo","Más bien de acuerdo"]
[null,"Femenino","Planta","Administrativo","51 - 60","d.-","c.-","e.-","d.-","a.-","a.-","e.-","c.-","a.-","c.-","c.-","Más bien en desacuerdo","Totalmente de acuerdo","Más bien de acuerdo","Totalmente en desacuerdo","Totalmente en desacuerdo","Totalmente de acuerdo","Totalmente de acuerdo","Más bien de acuerdo","Más bien en desacuerdo","Totalmente de acuerdo","Totalmente en desacuerdo","Totalmente de acuerdo","Totalmente en desacuerdo","Totalmente de acuerdo"]
[null,"Femenino","Planta","Administrativo","21 - 30","d.-","c.-","d.-","b.-","c.-","c.-","e.-","d.-","c.-","d.-","c.-","Más bien de acuerdo","Totalmente de acuerdo","Más bien de acuerdo","Lo ignoro","Lo ignoro","Más bien de acuerdo","Más bien de acuerdo","Más bien de acuerdo","Totalmente en desacuerdo","Más bien de acuerdo","Más bien de acuerdo","Totalmente de acuerdo","Más bien en desacuerdo","Más bien de acuerdo"]
[null,"Femenino","Planta","Administrativo","31- 40","b.-","b.-","a.-","b.-","a.-","a.-","e.-","b.-","a.-","d.-","c.-","Totalmente de acuerdo","Más bien de acuerdo","Totalmente de acuerdo","Totalmente en desacuerdo","Totalmente de acuerdo","Totalmente de acuerdo","Totalmente de acuerdo","Totalmente de acuerdo","Totalmente de acuerdo","Totalmente de acuerdo","Totalmente en desacuerdo","Totalmente de acuerdo","Totalmente de acuerdo","Totalmente de acuerdo"]
[null,"Masculino","Honorario","Administrativo","31- 40","c.-","c.-","a.-","b.-","b.-","c.-","e.-","b.-","b.-","d.-","e.-","Totalmente de acuerdo","Totalmente en desacuerdo","Más bien en desacuerdo","Totalmente en desacuerdo","Totalmente en desacuerdo","Más bien en desacuerdo","Totalmente en desacuerdo","Más bien en desacuerdo","Más bien en desacuerdo","Más bien de acuerdo","Totalmente en desacuerdo","Totalmente de acuerdo","Totalmente en desacuerdo","Totalmente de acuerdo"]
[null,"Masculino","Planta","Administrativo","31- 40","e.-","c.-","d.-","c.-","c.-","a.-","e.-","b.-","b.-","d.-","f.-","Más bien de acuerdo","Más bien en desacuerdo","Totalmente en desacuerdo","Totalmente en desacuerdo","Más bien en desacuerdo","Totalmente de acuerdo","Más bien en desacuerdo","Totalmente en desacuerdo","Más bien en desacuerdo","Totalmente de acuerdo","Totalmente en desacuerdo","Totalmente de acuerdo","Totalmente en desacuerdo","Totalmente de acuerdo"]
[null,"Masculino","Contrata","Administrativo","31- 40","d.-","c.-","a.-","b.-","b.-","c.-","e.-","b.-","b.-","d.-","e.-","Totalmente de acuerdo","Más bien en desacuerdo","Más bien en desacuerdo","Más bien en desacuerdo","Más bien en desacuerdo","Más bien en desacuerdo","Más bien en desacuerdo","Más bien de acuerdo","Más bien en desacuerdo","Totalmente de acuerdo","Totalmente en desacuerdo","Más bien de acuerdo","Totalmente en desacuerdo","Más bien en desacuerdo"]
[null,"Femenino","Honorario","Administrativo","16 - 20","d.-","b.-","a.-","a.-","b.-","c.-","e.-","b.-","b.-","d.-","c.-","Más bien en desacuerdo","Más bien en desacuerdo","Más bien en desacuerdo","Totalmente en desacuerdo","Más bien en desacuerdo","Más bien de acuerdo","Más bien en desacuerdo","Más bien en desacuerdo","Más bien de acuerdo","Más bien de acuerdo","Más bien de acuerdo","Más bien de acuerdo","Más bien en desacuerdo","Más bien de acuerdo"]
[null,"Masculino","Contrata","Administrativo","51 - 60","d.-","a.-","b.-","a.-","b.-","a.-","e.-","b.-","b.-","d.-","c.-","Totalmente de acuerdo","Totalmente en desacuerdo","Totalmente en desacuerdo","Más bien en desacuerdo","Más bien de acuerdo","Totalmente en desacuerdo","Totalmente de acuerdo","Más bien de acuerdo","Más bien de acuerdo","Totalmente de acuerdo","Totalmente en desacuerdo","Totalmente de acuerdo","Más bien en desacuerdo","Más bien de acuerdo"]
[null,"Masculino","Contrata","Administrativo","51 - 60","c.-","b.-","c.-","a.-","b.-","a.-","c.-","b.-","b.-","d.-","c.-","Totalmente en desacuerdo","Totalmente en desacuerdo","Más bien en desacuerdo","Totalmente en desacuerdo","Totalmente en desacuerdo","Más bien de acuerdo","Más bien en desacuerdo","Más bien en desacuerdo","Totalmente en desacuerdo","Totalmente de acuerdo","Totalmente en desacuerdo","Totalmente de acuerdo","Más bien de acuerdo","Totalmente de acuerdo"]
[null,"Masculino","Contrata","Administrativo","31- 40","d.-","a.-","b.-","d.-","d.-","c.-","e.-","b.-","c.-","d.-","b.-","Más bien de acuerdo","Totalmente en desacuerdo","Más bien en desacuerdo","Totalmente en desacuerdo","Más bien en desacuerdo","Más bien en desacuerdo","Más bien en desacuerdo","Más bien en desacuerdo","Más bien en desacuerdo","Totalmente de acuerdo","Totalmente en desacuerdo","Más bien de acuerdo","Totalmente en desacuerdo","Totalmente de acuerdo"]
[null,"Masculino","Planta","Administrativo","41 - 50","d.-","c.-","e.-","c.-","b.-","a.-","c.-","b.-","c.-","b.-","c.-","Totalmente de acuerdo","Totalmente de acuerdo","Más bien en desacuerdo","Más bien en desacuerdo","Más bien en desacuerdo","Totalmente de acuerdo","Más bien en desacuerdo","Más bien de acuerdo","Más bien de acuerdo","Totalmente de acuerdo","Más bien en desacuerdo","Totalmente de acuerdo","Más bien en desacuerdo","Totalmente de acuerdo"]
[null,"Femenino","Planta","Administrativo","51 - 60","c.-","a.-","a.-","a.-","c.-","e.-","a.-","b.-","c.-","a.-","e.-","Más bien en desacuerdo","Totalmente de acuerdo","Totalmente en desacuerdo","Totalmente en desacuerdo","Más bien en desacuerdo","Totalmente de acuerdo","Totalmente de acuerdo","Más bien en desacuerdo","Más bien en desacuerdo","Totalmente de acuerdo","Totalmente en desacuerdo","Totalmente de acuerdo","Totalmente de acuerdo","Totalmente de acuerdo"]
[null,"Masculino","Planta","Administrativo","51 - 60","c.-","a.-","d.-","b.-","c.-","c.-","e.-","c.-","c.-","d.-","a.-","Totalmente de acuerdo","Totalmente en desacuerdo","Totalmente en desacuerdo","Totalmente en desacuerdo","Totalmente en desacuerdo","Totalmente de acuerdo","Más bien en desacuerdo","Más bien en desacuerdo","Más bien en desacuerdo","Totalmente de acuerdo","Totalmente de acuerdo","Totalmente de acuerdo","Totalmente en desacuerdo","Totalmente de acuerdo"]
[null,"Femenino","Contrata","Administrativo","31- 40","c.-","c.-","d.-","c.-","c.-","c.-","e.-","b.-","c.-","d.-","b.-","Más bien de acuerdo","Más bien de acuerdo","Totalmente en desacuerdo","Totalmente en desacuerdo","Más bien en desacuerdo","Más bien en desacuerdo","Totalmente de acuerdo","Más bien en desacuerdo","Más bien en desacuerdo","Totalmente de acuerdo","Totalmente en desacuerdo","Totalmente de acuerdo","Totalmente en desacuerdo","Totalmente de acuerdo"]
[null,"Femenino","Planta","Administrativo","31- 40","c.-","c.-","d.-","a.-","b.-","a.-","e.-","d.-","c.-","d.-","c.-","Más bien en desacuerdo","Más bien en desacuerdo","Más bien de acuerdo","Lo ignoro","Totalmente en desacuerdo","Más bien en desacuerdo","Totalmente en desacuerdo","Totalmente en desacuerdo","Más bien de acuerdo","Más bien de acuerdo","No se pronuncia","Totalmente de acuerdo","Totalmente de acuerdo","Totalmente de acuerdo"]
[null,"Femenino","Planta","Administrativo","61 o más","c.-","c.-","d.-","a.-","a.-","a.-","e.-","a.-","a.-","d.-","c.-","Totalmente de acuerdo","Totalmente en desacuerdo","Totalmente en desacuerdo","Totalmente en desacuerdo","Totalmente de acuerdo","Totalmente de acuerdo","Totalmente de acuerdo","Más bien en desacuerdo","Totalmente de acuerdo","Totalmente de acuerdo","Totalmente en desacuerdo","Totalmente de acuerdo","Más bien en desacuerdo","Totalmente de acuerdo"]
[null,"Masculino","Honorario","Administrativo","31- 40","c.-","c.-","e.-","d.-","b.-","a.-","c.-","b.-","a.-","d.-","c.-","Más bien de acuerdo","Totalmente en desacuerdo","Totalmente en desacuerdo","Totalmente en desacuerdo","Totalmente de acuerdo","Totalmente de acuerdo","Totalmente de acuerdo","Totalmente de acuerdo","Totalmente de acuerdo","Totalmente de acuerdo","Totalmente en desacuerdo","Totalmente de acuerdo","Totalmente en desacuerdo","Totalmente de acuerdo"]
[null,"Masculino","Honorario","Administrativo","31- 40","c.-","c.-","e.-","d.-","b.-","a.-","c.-","b.-","a.-","d.-","c.-","Más bien de acuerdo","Totalmente en desacuerdo","Totalmente en desacuerdo","Totalmente en desacuerdo","Totalmente de acuerdo","Totalmente de acuerdo","Totalmente de acuerdo","Totalmente de acuerdo","Totalmente de acuerdo","Totalmente de acuerdo","Totalmente en desacuerdo","Totalmente de acuerdo","Totalmente en desacuerdo","Totalmente de acuerdo"]
[null,"Femenino","Planta","Administrativo","51 - 60","a.-","c.-","e.-","d.-","c.-","d.-","e.-","b.-","b.-","d.-","c.-","Totalmente en desacuerdo","Más bien en desacuerdo","Totalmente en desacuerdo","Más bien en desacuerdo","Totalmente en desacuerdo","Más bien en desacuerdo","Más bien de acuerdo","Más bien de acuerdo","Más bien de acuerdo","Totalmente de acuerdo","Totalmente en desacuerdo","Más bien de acuerdo","Más bien en desacuerdo","Más bien en desacuerdo"]
[null,"Femenino","Contrata","Administrativo","31- 40","c.-","c.-","d.-","c.-","c.-","e.-","a.-","b.-","c.-","d.-","e.-","Más bien de acuerdo","Más bien en desacuerdo","Más bien en desacuerdo","Totalmente en desacuerdo","Más bien de acuerdo","Más bien en desacuerdo","Más bien en desacuerdo","Más bien de acuerdo","Más bien de acuerdo","Totalmente de acuerdo","Más bien en desacuerdo","Más bien de acuerdo","Más bien de acuerdo","Más bien de acuerdo"]
[null,"Femenino","Honorario","Administrativo","21 - 30","d.-","c.-","b.-","a.-","d.-","e.-","b.-","b.-","d.-","d.-","e.-","Más bien en desacuerdo","Totalmente de acuerdo","Totalmente en desacuerdo","Totalmente en desacuerdo","Más bien en desacuerdo","Más bien en desacuerdo","Totalmente de acuerdo","Lo ignoro","Lo ignoro","Totalmente de acuerdo","Totalmente en desacuerdo","Totalmente de acuerdo","Totalmente en desacuerdo","Totalmente de acuerdo"]
[null,"Masculino","Contrata","Administrativo","31- 40","d.-","e.-","b.-","b.-","d.-","a.-","c.-","b.-","c.-","d.-","e.-","Totalmente en desacuerdo","Totalmente en desacuerdo","Más bien en desacuerdo","Totalmente en desacuerdo","Más bien en desacuerdo","Más bien de acuerdo","Totalmente en desacuerdo","Más bien en desacuerdo","Más bien en desacuerdo","Totalmente de acuerdo","Totalmente en desacuerdo","Totalmente de acuerdo","Totalmente en desacuerdo","Totalmente de acuerdo"]
[null,"Masculino","Honorario","Administrativo","21 - 30","b.-","e.-","d.-","a.-","a.-","c.-","e.-","b.-","b.-","d.-","c.-","Más bien de acuerdo","Más bien en desacuerdo","Más bien en desacuerdo","Más bien en desacuerdo","Más bien de acuerdo","Más bien de acuerdo","Más bien de acuerdo","Más bien de acuerdo","Más bien de acuerdo","Más bien de acuerdo","Más bien en desacuerdo","Más bien de acuerdo","Más bien de acuerdo","Más bien de acuerdo"]
[null,"Femenino","Honorario","Administrativo","51 - 60","d.-","c.-","d.-","c.-","c.-","c.-","e.-","b.-","c.-","d.-","e.-","Más bien de acuerdo","Más bien de acuerdo","Totalmente en desacuerdo","Totalmente en desacuerdo","Totalmente en desacuerdo","Más bien en desacuerdo","Totalmente de acuerdo","Más bien de acuerdo","Más bien de acuerdo","Totalmente de acuerdo","Totalmente en desacuerdo","Más bien en desacuerdo","Totalmente en desacuerdo","Más bien en desacuerdo"]
[null,"Masculino","Contrata","Administrativo","51 - 60","c.-","a.-","d.-","b.-","d.-","a.-","e.-","b.-","d.-","d.-","a.-","Más bien de acuerdo","Totalmente en desacuerdo","Totalmente en desacuerdo","Totalmente en desacuerdo","Más bien de acuerdo","Totalmente de acuerdo","Totalmente de acuerdo","Totalmente de acuerdo","Totalmente de acuerdo","Totalmente de acuerdo","Totalmente en desacuerdo","Totalmente en desacuerdo","Totalmente en desacuerdo","Totalmente de acuerdo"]
[null,"Masculino","Honorario","Administrativo","31- 40","c.-","c.-","c.-","c.-","c.-","a.-","e.-","c.-","c.-","d.-","b.-","Totalmente en desacuerdo","Totalmente en desacuerdo","Totalmente en desacuerdo","Totalmente en desacuerdo","Más bien en desacuerdo","Más bien de acuerdo","Totalmente de acuerdo","Totalmente de acuerdo","Totalmente de acuerdo","Más bien de acuerdo","Totalmente en desacuerdo","Más bien de acuerdo","Más bien en desacuerdo","Totalmente de acuerdo"]
[null,"Masculino","Honorario","Administrativo","31- 40","c.-","c.-","b.-","b.-","a.-","a.-","e.-","a.-","a.-","b.-","e.-","Más bien de acuerdo","Más bien en desacuerdo","Totalmente en desacuerdo","Totalmente en desacuerdo","Más bien en desacuerdo","Totalmente de acuerdo","Más bien de acuerdo","Más bien en desacuerdo","Totalmente de acuerdo","Totalmente de acuerdo","Totalmente en desacuerdo","Totalmente de acuerdo","Totalmente de acuerdo","Totalmente de acuerdo"]
[null,"Masculino","Honorario","Administrativo","31- 40","c.-","c.-","b.-","b.-","a.-","c.-","e.-","b.-","a.-","d.-","e.-","Totalmente de acuerdo","Totalmente de acuerdo","Más bien en desacuerdo","Totalmente en desacuerdo","Totalmente en desacuerdo","Totalmente en desacuerdo","Más bien en desacuerdo","Totalmente en desacuerdo","Totalmente en desacuerdo","Totalmente de acuerdo","Totalmente en desacuerdo","Totalmente de acuerdo","Totalmente de acuerdo","Más bien de acuerdo"]
[null,"Masculino","Planta","Administrativo","41 - 50","b.-","a.-","b.-","b.-","b.-","e.-","a.-","b.-","b.-","d.-","e.-","Más bien de acuerdo","Más bien de acuerdo","Totalmente en desacuerdo","Más bien en desacuerdo","Más bien de acuerdo","Totalmente de acuerdo","Más bien en desacuerdo","Más bien en desacuerdo","Más bien en desacuerdo","Totalmente de acuerdo","Más bien de acuerdo","Totalmente de acuerdo","Más bien de acuerdo","Más bien de acuerdo"]
[null,"Masculino","Contrata","Técnico","31- 40","c.-","b.-","d.-","c.-","b.-","c.-","e.-","b.-","a.-","d.-","d.-","Más bien en desacuerdo","Totalmente en desacuerdo","Totalmente en desacuerdo","Totalmente en desacuerdo","Más bien en desacuerdo","Más bien en desacuerdo","Más bien en desacuerdo","Más bien de acuerdo","Más bien de acuerdo","Más bien en desacuerdo","Totalmente en desacuerdo","Totalmente de acuerdo","Más bien de acuerdo","Totalmente de acuerdo"]
[null,"Femenino","Contrata","Técnico","51 - 60","d.-","c.-","d.-","b.-","b.-","c.-","e.-","b.-","a.-","d.-","e.-","Más bien de acuerdo","Totalmente de acuerdo","Más bien de acuerdo","Más bien de acuerdo","Totalmente de acuerdo","Totalmente de acuerdo","Totalmente de acuerdo","Más bien de acuerdo","Más bien de acuerdo","Totalmente de acuerdo","Totalmente de acuerdo","Totalmente de acuerdo","Totalmente de acuerdo","Totalmente de acuerdo"]
[null,"Masculino","Planta","Técnico","61 o más","c.-","a.-","b.-","b.-","c.-","c.-","e.-","b.-","a.-","d.-","e.-","Más bien de acuerdo","Más bien de acuerdo","Totalmente en desacuerdo","Totalmente en desacuerdo","Más bien en desacuerdo","Totalmente de acuerdo","Más bien de acuerdo","Más bien en desacuerdo","Totalmente de acuerdo","Totalmente de acuerdo","Totalmente en desacuerdo","Totalmente de acuerdo","Totalmente de acuerdo","Totalmente de acuerdo"]
[null,"Femenino","Planta","Técnico","41 - 50","d.-","a.-","b.-","b.-","c.-","c.-","e.-","b.-","c.-","d.-","e.-","Más bien de acuerdo","Más bien de acuerdo","Más bien en desacuerdo","Más bien en desacuerdo","Más bien de acuerdo","Más bien en desacuerdo","Más bien de acuerdo","Más bien de acuerdo","Más bien de acuerdo","Más bien de acuerdo","Más bien en desacuerdo","Totalmente de acuerdo","Más bien en desacuerdo","Totalmente de acuerdo"]
[null,"Femenino","Planta","Técnico","41 - 50","d.-","c.-","b.-","a.-","a.-","a.-","e.-","a.-","a.-","d.-","f.-","Más bien de acuerdo","Más bien en desacuerdo","Más bien en desacuerdo","Totalmente en desacuerdo","Lo ignoro","Más bien de acuerdo","Más bien en desacuerdo","Más bien en desacuerdo","Totalmente en desacuerdo","Más bien de acuerdo","Más bien en desacuerdo","Más bien de acuerdo","Más bien en desacuerdo","Más bien de acuerdo"]
[null,"Femenino","Planta","Técnico","21 - 30","d.-","c.-","a.-","b.-","a.-","a.-","e.-","b.-","b.-","d.-","b.-","Más bien en desacuerdo","Más bien en desacuerdo","Más bien en desacuerdo","Más bien en desacuerdo","Más bien de acuerdo","Totalmente de acuerdo","Más bien de acuerdo","Más bien de acuerdo","Más bien de acuerdo","Totalmente de acuerdo","Más bien en desacuerdo","Totalmente de acuerdo","Más bien en desacuerdo","Totalmente de acuerdo"]
[null,"Femenino","Planta","Técnico","41 - 50","d.-","a.-","d.-","d.-","c.-","d.-","e.-","c.-","b.-","d.-","c.-","Más bien de acuerdo","Más bien en desacuerdo","Totalmente en desacuerdo","Totalmente en desacuerdo","Más bien de acuerdo","Totalmente de acuerdo","Más bien de acuerdo","Más bien de acuerdo","Totalmente de acuerdo","Totalmente de acuerdo","Más bien de acuerdo","Totalmente de acuerdo","Más bien en desacuerdo","Totalmente de acuerdo"]
[null,"Masculino","Planta","Técnico","31- 40","b.-","a.-","d.-","b.-","c.-","a.-","e.-","d.-","c.-","d.-","e.-","Más bien en desacuerdo","Más bien en desacuerdo","Totalmente en desacuerdo","Totalmente en desacuerdo","Totalmente en desacuerdo","Más bien en desacuerdo","Totalmente en desacuerdo","Totalmente en desacuerdo","Totalmente en desacuerdo","Totalmente de acuerdo","Totalmente en desacuerdo","Totalmente de acuerdo","Totalmente en desacuerdo","Totalmente de acuerdo"]
[null,"Femenino","Planta","Técnico","51 - 60","b.-","a.-","e.-","c.-","d.-","a.-","e.-","b.-","d.-","c.-","b.-","Más bien en desacuerdo","Totalmente en desacuerdo","Totalmente en desacuerdo","Totalmente en desacuerdo","Totalmente de acuerdo","Totalmente de acuerdo","Lo ignoro","Más bien en desacuerdo","Totalmente de acuerdo","Totalmente de acuerdo","Totalmente en desacuerdo","Totalmente de acuerdo","Totalmente en desacuerdo","Totalmente de acuerdo"]
[null,"Masculino","Honorario","Técnico","21 - 30","c.-","a.-","b.-","c.-","d.-","e.-","c.-","b.-","b.-","d.-","e.-","Totalmente de acuerdo","Más bien de acuerdo","Totalmente en desacuerdo","Totalmente en desacuerdo","Más bien de acuerdo","Lo ignoro","Totalmente de acuerdo","Totalmente de acuerdo","Más bien de acuerdo","Totalmente de acuerdo","Más bien de acuerdo","Totalmente de acuerdo","Más bien en desacuerdo","Más bien en desacuerdo"]
[null,"Femenino","Honorario","Técnico","41 - 50","d.-","a.-","a.-","a.-","c.-","a.-","e.-","d.-","c.-","d.-","c.-","Más bien de acuerdo","Más bien en desacuerdo","Totalmente en desacuerdo","Totalmente en desacuerdo","Totalmente de acuerdo","Totalmente de acuerdo","Más bien en desacuerdo","Totalmente de acuerdo","Totalmente de acuerdo","Totalmente de acuerdo","Totalmente en desacuerdo","Totalmente de acuerdo","Totalmente en desacuerdo","Totalmente de acuerdo"]
[null,"Masculino","Planta","Técnico","41 - 50","c.-","a.-","d.-","d.-","b.-","e.-","a.-","b.-","a.-","d.-","e.-","Más bien en desacuerdo","Más bien en desacuerdo","Más bien en desacuerdo","Totalmente en desacuerdo","Totalmente en desacuerdo","Totalmente de acuerdo","Totalmente de acuerdo","Más bien de acuerdo","Totalmente en desacuerdo","Totalmente de acuerdo","Totalmente en desacuerdo","Totalmente de acuerdo","Más bien en desacuerdo","Más bien de acuerdo"]
[null,"Femenino","Planta","Técnico","31- 40","d.-","c.-","d.-","b.-","d.-","d.-","e.-","d.-","c.-","d.-","e.-","Más bien de acuerdo","Más bien en desacuerdo","Más bien en desacuerdo","Más bien en desacuerdo","Más bien de acuerdo","Más bien de acuerdo","Más bien de acuerdo","Totalmente de acuerdo","Más bien de acuerdo","Totalmente de acuerdo","Totalmente en desacuerdo","Más bien de acuerdo","Totalmente en desacuerdo","Más bien de acuerdo"]
[null,"Femenino","Contrata","Técnico","41 - 50","d.-","c.-","a.-","b.-","c.-","c.-","e.-","b.-","c.-","d.-","e.-","Totalmente de acuerdo","Más bien en desacuerdo","Totalmente en desacuerdo","Totalmente en desacuerdo","Más bien en desacuerdo","Más bien de acuerdo","Totalmente en desacuerdo","Más bien en desacuerdo","Totalmente de acuerdo","Totalmente de acuerdo","Más bien en desacuerdo","Totalmente de acuerdo","Más bien de acuerdo","Totalmente de acuerdo"]
[null,"Masculino","Planta","Técnico","51 - 60","d.-","b.-","d.-","a.-","b.-","a.-","d.-","a.-","b.-","c.-","f.-","Totalmente de acuerdo","Totalmente en desacuerdo","Totalmente en desacuerdo","Totalmente en desacuerdo","Más bien en desacuerdo","Totalmente de acuerdo","Más bien en desacuerdo","Totalmente en desacuerdo","Totalmente en desacuerdo","Totalmente en desacuerdo","Totalmente en desacuerdo","Totalmente en desacuerdo","Totalmente en desacuerdo","Totalmente en desacuerdo"]
[null,"Femenino","Honorario","Técnico","31- 40","c.-","a.-","d.-","b.-","b.-","b.-","c.-","b.-","b.-","d.-","a.-","Más bien en desacuerdo","Más bien en desacuerdo","Más bien en desacuerdo","Totalmente en desacuerdo","Más bien en desacuerdo","Más bien en desacuerdo","Más bien en desacuerdo","Más bien de acuerdo","Más bien de acuerdo","Totalmente de acuerdo","Totalmente en desacuerdo","Totalmente de acuerdo","Más bien en desacuerdo","Totalmente de acuerdo"]
[null,"Femenino","Contrata","Técnico","31- 40","d.-","a.-","c.-","b.-","c.-","a.-","e.-","b.-","c.-","d.-","b.-","Más bien de acuerdo","Totalmente en desacuerdo","Totalmente en desacuerdo","Totalmente en desacuerdo","Totalmente en desacuerdo","Totalmente en desacuerdo","Totalmente de acuerdo","Más bien en desacuerdo","Más bien en desacuerdo","Totalmente de acuerdo","Totalmente en desacuerdo","Totalmente de acuerdo","Más bien en desacuerdo","Totalmente de acuerdo"]
[null,"Masculino","Planta","Técnico","61 o más","c.-","c.-","d.-","d.-","b.-","d.-","e.-","c.-","c.-","c.-","e.-","Más bien en desacuerdo","Más bien en desacuerdo","Totalmente en desacuerdo","Totalmente en desacuerdo","Más bien en desacuerdo","Totalmente de acuerdo","Totalmente de acuerdo","Más bien de acuerdo","Totalmente de acuerdo","Totalmente de acuerdo","Totalmente en desacuerdo","Más bien de acuerdo","Totalmente en desacuerdo","Totalmente de acuerdo"]
[null,"Femenino","Planta","Profesional","31- 40","c.-","c.-","e.-","d.-","a.-","c.-","e.-","b.-","b.-","d.-","c.-","Totalmente de acuerdo","Totalmente en desacuerdo","Totalmente en desacuerdo","Totalmente en desacuerdo","Más bien en desacuerdo","Más bien en desacuerdo","Totalmente en desacuerdo","Más bien en desacuerdo","Totalmente en desacuerdo","Totalmente de acuerdo","Totalmente en desacuerdo","Totalmente de acuerdo","Más bien en desacuerdo","Totalmente de acuerdo"]
[null,"Masculino","Planta","Profesional","31- 40","d.-","b.-","c.-","c.-","c.-","a.-","e.-","c.-","b.-","d.-","e.-","Totalmente en desacuerdo","Totalmente en desacuerdo","Más bien en desacuerdo","Totalmente en desacuerdo","Más bien en desacuerdo","Más bien en desacuerdo","Más bien en desacuerdo","Totalmente en desacuerdo","Más bien en desacuerdo","Totalmente de acuerdo","Totalmente en desacuerdo","Más bien de acuerdo","Totalmente en desacuerdo","Más bien de acuerdo"]
[null,"Masculino","Honorario","Profesional","31- 40","d.-","c.-","e.-","d.-","b.-","c.-","e.-","c.-","b.-","d.-","e.-","Totalmente en desacuerdo","Más bien de acuerdo","Totalmente en desacuerdo","Totalmente en desacuerdo","Totalmente en desacuerdo","Más bien en desacuerdo","Totalmente en desacuerdo","Más bien en desacuerdo","Más bien en desacuerdo","Totalmente de acuerdo","Totalmente en desacuerdo","Totalmente de acuerdo","Más bien en desacuerdo","Más bien en desacuerdo"]
[null,"Masculino","Planta","Profesional","61 o más","f.-","e.-","e.-","a.-","b.-","b.-","c.-","c.-","b.-","d.-","e.-","Totalmente en desacuerdo","Totalmente en desacuerdo","Más bien en desacuerdo","Totalmente en desacuerdo","Más bien de acuerdo","Más bien de acuerdo","Más bien de acuerdo","Lo ignoro","Totalmente en desacuerdo","Totalmente de acuerdo","Totalmente en desacuerdo","Totalmente de acuerdo","Totalmente de acuerdo","Totalmente de acuerdo"]
[null,"Masculino","Contrata","Profesional","41 - 50","c.-","b.-","c.-","b.-","a.-","b.-","d.-","b.-","a.-","d.-","a.-","Totalmente en desacuerdo","Más bien de acuerdo","Más bien de acuerdo","Más bien en desacuerdo","Más bien en desacuerdo","Totalmente en desacuerdo","Totalmente en desacuerdo","Más bien de acuerdo","Más bien de acuerdo","Totalmente de acuerdo","Más bien en desacuerdo","Totalmente de acuerdo","Totalmente en desacuerdo","Más bien en desacuerdo"]
[null,"Femenino","Contrata","Profesional","31- 40","d.-","a.-","d.-","c.-","d.-","a.-","e.-","c.-","b.-","d.-","c.-","Más bien de acuerdo","Totalmente en desacuerdo","Más bien de acuerdo","Totalmente en desacuerdo","Totalmente en desacuerdo","Lo ignoro","Más bien de acuerdo","Totalmente en desacuerdo","Totalmente en desacuerdo","Totalmente de acuerdo","Más bien en desacuerdo","Totalmente de acuerdo","Totalmente de acuerdo","Más bien en desacuerdo"]
[null,"Masculino","Planta","Profesional","31- 40","b.-","a.-","b.-","b.-","b.-","d.-","e.-","b.-","b.-","d.-","c.-","Más bien en desacuerdo","Más bien de acuerdo","Totalmente en desacuerdo","Totalmente en desacuerdo","Totalmente en desacuerdo","Totalmente de acuerdo","Totalmente de acuerdo","Totalmente de acuerdo","Más bien de acuerdo","Totalmente de acuerdo","Totalmente en desacuerdo","Totalmente de acuerdo","Totalmente en desacuerdo","Más bien de acuerdo"]
[null,"Masculino","Honorario","Profesional","21 - 30","c.-","c.-","a.-","b.-","a.-","d.-","e.-","b.-","b.-","b.-","b.-","Totalmente de acuerdo","Más bien en desacuerdo","Más bien en desacuerdo","Más bien en desacuerdo","Más bien en desacuerdo","Más bien de acuerdo","Más bien en desacuerdo","Más bien en desacuerdo","Más bien de acuerdo","Totalmente de acuerdo","Más bien de acuerdo","Más bien de acuerdo","Más bien en desacuerdo","Más bien de acuerdo"]
[null,"Masculino","Planta","Profesional","31- 40","d.-","a.-","a.-","a.-","b.-","c.-","e.-","b.-","b.-","d.-","c.-","Más bien de acuerdo","Más bien en desacuerdo","Totalmente en desacuerdo","Totalmente en desacuerdo","Totalmente en desacuerdo","Totalmente en desacuerdo","Totalmente en desacuerdo","Más bien en desacuerdo","Más bien de acuerdo","Totalmente de acuerdo","Totalmente en desacuerdo","Totalmente de acuerdo","Más bien en desacuerdo","Totalmente de acuerdo"]
[null,"Femenino","Planta","Profesional","51 - 60","c.-","b.-","d.-","b.-","b.-","d.-","e.-","a.-","b.-","d.-","c.-","Más bien de acuerdo","Más bien en desacuerdo","Totalmente en desacuerdo","Totalmente en desacuerdo","Más bien en desacuerdo","Más bien de acuerdo","Más bien de acuerdo","Más bien de acuerdo","Más bien de acuerdo","Totalmente de acuerdo","Totalmente en desacuerdo","Totalmente de acuerdo","Más bien en desacuerdo","Totalmente de acuerdo"]
[null,"Masculino","Honorario","Profesional","41 - 50","b.-","b.-","e.-","d.-","d.-","a.-","e.-","c.-","c.-","d.-","c.-","Totalmente en desacuerdo","Más bien en desacuerdo","Totalmente en desacuerdo","Totalmente en desacuerdo","Totalmente de acuerdo","Totalmente en desacuerdo","Totalmente en desacuerdo","Más bien en desacuerdo","Lo ignoro","Totalmente de acuerdo","Totalmente en desacuerdo","Totalmente de acuerdo","Totalmente de acuerdo","Más bien de acuerdo"]
[null,"Masculino","Honorario","Profesional","21 - 30","f.-","e.-","d.-","c.-","d.-","c.-","e.-","b.-","a.-","d.-","c.-","Totalmente en desacuerdo","Más bien en desacuerdo","Totalmente en desacuerdo","Totalmente en desacuerdo","Totalmente en desacuerdo","Más bien en desacuerdo","Más bien de acuerdo","Totalmente en desacuerdo","Totalmente en desacuerdo","Totalmente de acuerdo","Totalmente en desacuerdo","Más bien de acuerdo","Más bien de acuerdo","Más bien de acuerdo"]
[null,"Femenino","Planta","Profesional","41 - 50","c.-","a.-","b.-","b.-","c.-","a.-","e.-","b.-","c.-","d.-","c.-","Más bien en desacuerdo","Más bien en desacuerdo","Más bien en desacuerdo","Totalmente en desacuerdo","Más bien en desacuerdo","Más bien de acuerdo","Más bien de acuerdo","Más bien en desacuerdo","Más bien en desacuerdo","Totalmente de acuerdo","Totalmente en desacuerdo","Más bien de acuerdo","Más bien de acuerdo","Totalmente de acuerdo"]
[null,"Femenino","Contrata","Profesional","41 - 50","d.-","b.-","a.-","c.-","a.-","a.-","e.-","b.-","a.-","d.-","c.-","Más bien de acuerdo","Totalmente en desacuerdo","Totalmente en desacuerdo","Más bien en desacuerdo","Más bien de acuerdo","Totalmente de acuerdo","Más bien de acuerdo","Más bien de acuerdo","Más bien de acuerdo","Totalmente de acuerdo","Totalmente en desacuerdo","Totalmente de acuerdo","Totalmente en desacuerdo","Totalmente de acuerdo"]
[null,"Masculino","Contrata","Profesional","31- 40","c.-","c.-","d.-","c.-","c.-","c.-","e.-","b.-","c.-","d.-","c.-","Más bien en desacuerdo","Más bien en desacuerdo","Totalmente en desacuerdo","Totalmente en desacuerdo","Totalmente en desacuerdo","Totalmente de acuerdo","Totalmente en desacuerdo","Totalmente en desacuerdo","Totalmente en desacuerdo","Más bien de acuerdo","Totalmente en desacuerdo","Totalmente de acuerdo","Totalmente de acuerdo","Totalmente de acuerdo"]
[null,"Femenino","Honorario","Profesional","31- 40","c.-","c.-","b.-","b.-","c.-","a.-","e.-","b.-","c.-","d.-","c.-","Totalmente de acuerdo","Totalmente en desacuerdo","Totalmente en desacuerdo","Totalmente en desacuerdo","Totalmente en desacuerdo","Totalmente en desacuerdo","Totalmente en desacuerdo","Más bien de acuerdo","Más bien de acuerdo","Totalmente de acuerdo","Totalmente en desacuerdo","Totalmente de acuerdo","Más bien en desacuerdo","Totalmente de acuerdo"]
[null,"Masculino","Planta","Profesional","41 - 50","c.-","c.-","a.-","b.-","c.-","c.-","d.-","c.-","c.-","d.-","b.-","Totalmente en desacuerdo","Más bien de acuerdo","Totalmente en desacuerdo","Totalmente en desacuerdo","Totalmente en desacuerdo","Totalmente en desacuerdo","Totalmente en desacuerdo","Totalmente en desacuerdo","Totalmente en desacuerdo","Totalmente de acuerdo","Totalmente en desacuerdo","Totalmente de acuerdo","Más bien en desacuerdo","Más bien de acuerdo"]
[null,"Femenino","Honorario","Profesional","31- 40","c.-","c.-","d.-","b.-","a.-","c.-","e.-","b.-","c.-","d.-","c.-","Más bien en desacuerdo","Totalmente en desacuerdo","Totalmente en desacuerdo","Totalmente en desacuerdo","Más bien en desacuerdo","Más bien de acuerdo","Totalmente de acuerdo","Más bien en desacuerdo","Más bien en desacuerdo","Totalmente de acuerdo","Totalmente en desacuerdo","Totalmente de acuerdo","Totalmente en desacuerdo","Totalmente de acuerdo"]
[null,"Femenino","Honorario","Profesional","21 - 30","c.-","e.-","d.-","c.-","d.-","c.-","e.-","b.-","a.-","d.-","c.-","Totalmente en desacuerdo","Más bien en desacuerdo","Totalmente en desacuerdo","Totalmente en desacuerdo","Totalmente en desacuerdo","Más bien en desacuerdo","Más bien de acuerdo","Totalmente en desacuerdo","Totalmente en desacuerdo","Totalmente de acuerdo","Totalmente en desacuerdo","Más bien de acuerdo","Más bien de acuerdo","Más bien de acuerdo"]
[null,"Femenino","Honorario","Profesional","31- 40","c.-","c.-","d.-","b.-","b.-","c.-","e.-","b.-","c.-","d.-","c.-","Más bien en desacuerdo","Totalmente en desacuerdo","Totalmente en desacuerdo","Totalmente en desacuerdo","Más bien en desacuerdo","Más bien de acuerdo","Totalmente de acuerdo","Más bien en desacuerdo","Más bien en desacuerdo","Totalmente de acuerdo","Totalmente en desacuerdo","Totalmente de acuerdo","Totalmente en desacuerdo","Totalmente de acuerdo"]
[null,"Masculino","Honorario","Profesional","21 - 30","c.-","b.-","b.-","b.-","b.-","d.-","e.-","b.-","c.-","b.-","a.-","Totalmente de acuerdo","Más bien de acuerdo","Más bien en desacuerdo","Más bien en desacuerdo","Totalmente en desacuerdo","Más bien en desacuerdo","Más bien en desacuerdo","Totalmente en desacuerdo","Totalmente en desacuerdo","Totalmente de acuerdo","Más bien en desacuerdo","Totalmente de acuerdo","Más bien de acuerdo","Totalmente de acuerdo"]
[null,"Femenino","Honorario","Profesional","41 - 50","c.-","c.-","b.-","c.-","c.-","c.-","e.-","d.-","c.-","d.-","b.-","Totalmente en desacuerdo","Totalmente en desacuerdo","Más bien en desacuerdo","Totalmente en desacuerdo","Totalmente en desacuerdo","Más bien en desacuerdo","Más bien en desacuerdo","Totalmente de acuerdo","Más bien de acuerdo","Totalmente de acuerdo","Totalmente en desacuerdo","Totalmente de acuerdo","Totalmente en desacuerdo","Totalmente de acuerdo"]
[null,"Masculino","Planta","Directivo","31- 40","c.-","c.-","b.-","c.-","a.-","e.-","d.-","b.-","a.-","a.-","c.-","Más bien de acuerdo","Totalmente en desacuerdo","Más bien de acuerdo","Totalmente en desacuerdo","Totalmente en desacuerdo","Más bien en desacuerdo","Totalmente de acuerdo","Más bien en desacuerdo","Totalmente en desacuerdo","Más bien de acuerdo","Más bien de acuerdo","Más bien de acuerdo","Totalmente en desacuerdo","Totalmente de acuerdo"]
[null,"Femenino","Planta","Directivo","51 - 60","c.-","c.-","c.-","c.-","c.-","a.-","e.-","b.-","c.-","d.-","e.-","Más bien en desacuerdo","Totalmente en desacuerdo","Totalmente en desacuerdo","Totalmente en desacuerdo","Totalmente en desacuerdo","Totalmente en desacuerdo","Totalmente en desacuerdo","Totalmente en desacuerdo","Totalmente en desacuerdo","Totalmente de acuerdo","Totalmente en desacuerdo","Más bien de acuerdo","Totalmente de acuerdo","Más bien de acuerdo"]
[null,"Femenino","Planta","Directivo","41 - 50","c.-","c.-","a.-","a.-","a.-","a.-","e.-","a.-","b.-","d.-","c.-","Más bien de acuerdo","Totalmente en desacuerdo","Más bien en desacuerdo","Totalmente en desacuerdo","Totalmente en desacuerdo","Más bien de acuerdo","Totalmente de acuerdo","Totalmente en desacuerdo","Más bien en desacuerdo","Totalmente de acuerdo","Totalmente en desacuerdo","Más bien de acuerdo","Totalmente en desacuerdo","Totalmente de acuerdo"]
[null,"Femenino","Planta","Directivo","31- 40","d.-","c.-","c.-","b.-","b.-","c.-","e.-","a.-","b.-","d.-","e.-","Más bien de acuerdo","Más bien en desacuerdo","Más bien en desacuerdo","Totalmente en desacuerdo","Totalmente en desacuerdo","Más bien de acuerdo","Totalmente en desacuerdo","Más bien en desacuerdo","Más bien de acuerdo","Totalmente de acuerdo","Totalmente en desacuerdo","Más bien de acuerdo","Más bien en desacuerdo","Totalmente de acuerdo"]
[null,"Masculino","Planta","Directivo","41 - 50","c.-","c.-","e.-","d.-","b.-","c.-","e.-","d.-","b.-","d.-","e.-","Totalmente de acuerdo","Totalmente de acuerdo","Totalmente en desacuerdo","Totalmente en desacuerdo","Lo ignoro","Lo ignoro","Totalmente en desacuerdo","Totalmente de acuerdo","Totalmente en desacuerdo","Totalmente de acuerdo","Totalmente en desacuerdo","Totalmente de acuerdo","Totalmente en desacuerdo","Totalmente de acuerdo"]
[null,"Femenino","Planta","Directivo","41 - 50","d.-","c.-","e.-","c.-","b.-","a.-","c.-","c.-","b.-","d.-","e.-","Más bien de acuerdo","Totalmente de acuerdo","Más bien en desacuerdo","Totalmente en desacuerdo","Más bien de acuerdo","Totalmente de acuerdo","Más bien en desacuerdo","Más bien de acuerdo","Totalmente de acuerdo","Totalmente de acuerdo","Más bien de acuerdo","Totalmente de acuerdo","Más bien en desacuerdo","Más bien en desacuerdo"]
[null,"Masculino","Honorario","Directivo","31- 40","d.-","a.-","d.-","a.-","a.-","e.-","c.-","a.-","b.-","d.-","e.-","Más bien de acuerdo","Totalmente en desacuerdo","Más bien en desacuerdo","Más bien en desacuerdo","Más bien en desacuerdo","Totalmente de acuerdo","Más bien de acuerdo","Más bien de acuerdo","Más bien de acuerdo","Más bien en desacuerdo","Totalmente en desacuerdo","Más bien de acuerdo","Más bien en desacuerdo","Más bien de acuerdo"]
[null,"Femenino","Planta","Directivo","51 - 60","d.-","a.-","d.-","a.-","d.-","a.-","e.-","c.-","c.-","d.-","c.-","Totalmente de acuerdo","Totalmente en desacuerdo","Totalmente en desacuerdo","Totalmente de acuerdo","Lo ignoro","Lo ignoro","Lo ignoro","Lo ignoro","Totalmente en desacuerdo","Lo ignoro","No se pronuncia","No se pronuncia","No se pronuncia","No se pronuncia"]
[null,"Masculino","Planta","Directivo","51 - 60","c.-","a.-","d.-","b.-","c.-","a.-","e.-","b.-","b.-","d.-","e.-","Más bien de acuerdo","Más bien de acuerdo","Totalmente en desacuerdo","Totalmente en desacuerdo","Totalmente en desacuerdo","Más bien de acuerdo","Más bien de acuerdo","Totalmente en desacuerdo","Totalmente en desacuerdo","Más bien de acuerdo","Totalmente en desacuerdo","Totalmente de acuerdo","Más bien de acuerdo","Totalmente de acuerdo"]
[null,"Masculino","Planta","Directivo","61 o más","a.-","a.-","d.-","b.-","c.-","c.-","e.-","b.-","c.-","c.-","c.-","Totalmente en desacuerdo","Más bien en desacuerdo","Más bien en desacuerdo","Totalmente en desacuerdo","Totalmente en desacuerdo","Más bien de acuerdo","Más bien en desacuerdo","Más bien en desacuerdo","Más bien de acuerdo","Más bien de acuerdo","Totalmente en desacuerdo","Totalmente de acuerdo","Más bien en desacuerdo","Más bien de acuerdo"]

{"sheet":"GRÁFICOS","index":4,"n_rows":333,"n_cols":17,"rows_kept":333,"cut":false,"hidden":false,"merged":[[316,1,317,16],[135,1,135,2],[34,1,34,13],[39,1,39,4],[52,1,52,13],[54,1,54,9],[85,1,85,13],[91,1,91,3],[105,1,105,13],[111,1,111,3],[125,1,125,13],[132,1,132,2],[134,1,134,2],[230,1,230,4],[136,1,136,2],[145,1,145,13],[258,1,258,3],[151,1,151,4],[152,1,152,4],[167,1,167,13],[173,1,173,3],[185,1,185,13],[329,0,329,16],[329,17,329,19],[9,0,9,19],[13,0,14,16],[284,1,284,13],[286,1,286,3],[251,1,251,13],[253,1,253,3],[254,1,254,3],[255,1,255,3],[256,1,256,3],[257,1,257,3],[191,1,191,2],[205,1,205,13],[210,1,210,2],[226,1,226,13],[326,0,326,16],[326,17,326,19],[327,0,327,16],[327,17,327,19],[328,0,328,16],[328,17,328,19],[323,0,323,16],[324,0,324,16],[324,17,324,19],[325,0,325,16],[325,17,325,19],[330,0,330,16],[330,17,330,19],[331,0,331,16],[331,17,331,19],[332,0,332,16],[332,17,332,19]]}
[]
[]
[]
[]
[]
["I. MUNICIPALIDAD DE SAN BERNARDO"]
["DIRECCION DE DESARROLLO COMUNITARIO"]
["DEPARTAMENTO DE DESARROLLO LOCAL SUSTENTABLE"]
[]
["ENCUESTA A LOS FUNCIONARIOS"]
[]
["I DETERMINACION DEL TAMAÑO DE LA MUESTRA"]
[]
["1. El tamaño de la muestra se determina en concordancia con el \"Manual SCAM\" entregado por el Ministerio de Medio Ambiente, basado en la dotación de funcionarios municipales año 2014, que corresponde a 687 trabajadores."]
[]
["2. Con lo anterior, se determina el tamaño de la muestra en 168 encuestas, que cubre el 24.5% del universo de trabajadores."]
["3. El universo encuestado incluye funcionarios de todos los tipos de calidad jurídica, todas las unidades municipales y todos los estamentos."]
[]
["Escalafón o estamento","Peso Porcentual por estamento*","Cantidad de encuestas                               *","ALCALDIA","DIDECO","SECPLA","DAJ","DOM","DOP","TTP","DAO","SECMU","DAF","CONTROL","JPL 1","JPL 2","TOTAL"]
["Directivo",0.05,{"$f":"+$D$7*B20","v":0},1,1,1,1,null,1,1,1,1,1,1,null,null,{"$f":"SUM(D20:P20)","v":10}]
["Profesional",0.13,{"$f":"+$D$7*B21","v":0},2,2,2,2,2,2,1,2,1,2,2,1,1,{"$f":"SUM(D21:P21)","v":22}]
["Técnico",0.11,0,null,3,null,null,2,2,2,2,2,4,1,null,null,18]
["Administrativo",0.53,0,4,35,3,1,2,6,3,6,4,20,4,null,null,88]
["Auxiliar",0.18,0,1,2,1,1,1,18,1,2,null,1,null,1,1,30]
["Totales",1,{"$f":"SUM(C20:C24)","v":0},{"$f":"SUM(D20:D24)","v":8},{"$f":"SUM(E20:E24)","v":43},{"$f":"SUM(F20:F24)","v":7},5,7,29,8,13,8,28,8,2,2,{"$f":"SUM(Q20:Q24)","v":168}]
["TOTAL DE FUNCIONARIOS: 687"]
["FUENTE: ESCALAFON VIGENTE / BASE DE DATOS REMUNERACIONES"]
["TOTAL DE ENCUESTAS: 24,5% DEL TOTAL DE FUNCIONARIOS (*) "]
["(*) MANUAL SCAM"]
[]
[]
["II ANALISIS DE RESULTADOS"]
[]
[]
[null,"1.- ¿Cuál de las siguientes instituciones, cree usted, que es la responsanle de elaborar las ordenanzas ambientales?"]
[]
[]
[]
[]
[null,"Detalle",null,null,null,"Conteo"]
["a.-","a) El Congreso",null,null,null,{"$f":"COUNTIF(RESPUESTAS!F:F,GRÁFICOS!A41)","v":3}]
["b.-","b) La Superintendencia del medioambiente",null,null,null,{"$f":"COUNTIF(RESPUESTAS!F:F,GRÁFICOS!A42)","v":14}]
["c.-","c) El Municipio",null,null,null,{"$f":"COUNTIF(RESPUESTAS!F:F,GRÁFICOS!A43)","v":63}]
["d.-","d) El Ministerio del  medio ambiente",null,null,null,{"$f":"COUNTIF(RESPUESTAS!F:F,GRÁFICOS!A44)","v":78}]
["e.-","e) ministerio de salud",null,null,null,{"$f":"COUNTIF(RESPUESTAS!F:F,GRÁFICOS!A45)","v":4}]
["f.-","f) No lo sé",null,null,null,{"$f":"COUNTIF(RESPUESTAS!F:F,GRÁFICOS!A46)","v":6}]
[]
[]
[]
[]
[]
[]
[null,"2.- Una Ordenanza ambiental es un instrumento:"]
[]
[null,"Detalle",null,null,null,null,null,null,null,null,"Conteo"]
["a.-","a)  Legal que permite normar y sancionar conductas ambientales de las empresas y el comercio.",null,null,null,null,null,null,null,null,{"$f":"COUNTIF(RESPUESTAS!G:G,GRÁFICOS!A56)","v":54}]
["b.-","b)  Administrativo que permite normar y sancionar conductas ambientales de las personas.",null,null,null,null,null,null,null,null,{"$f":"COUNTIF(RESPUESTAS!G:G,GRÁFICOS!A57)","v":18}]
["c.-","c)  Jurídico que permite normar y sancionar conductas ambientales de la comunidad.",null,null,null,null,null,null,null,null,{"$f":"COUNTIF(RESPUESTAS!G:G,GRÁFICOS!A58)","v":79}]
["d.-","d)  Financiero que permite normar y sancionar conductas ambientales de las personas. ",null,null,null,null,null,null,null,null,{"$f":"COUNTIF(RESPUESTAS!G:G,GRÁFICOS!A59)","v":3}]
["e.-","e) No lo  sé",null,null,null,null,null,null,null,null,{"$f":"COUNTIF(RESPUESTAS!G:G,GRÁFICOS!A60)","v":14}]
[]
[]
[]
[]
[]
[]
[]
[]
[]
[]
[]
[]
[]
[]
[]
[]
[]
[]
[]
[]
[]
[]
[]
[]
[]
[null,"3.- En el municipio, los/as colegas practican acciones en sus oficinas que ayudan al reciclaje, el ahorro de energía o del agua:"]
[]
[]
[]
[]
[]
[null,"Detalle",null,null,"conteo"]
["a.-","a) Diariamente",null,null,{"$f":"COUNTIF(RESPUESTAS!H:H,GRÁFICOS!A93)","v":32}]
["b.-","b) Algunas veces a la semana",null,null,{"$f":"COUNTIF(RESPUESTAS!H:H,GRÁFICOS!A94)","v":32}]
["c.-","c) Algunas veces al mes",null,null,{"$f":"COUNTIF(RESPUESTAS!H:H,GRÁFICOS!A95)","v":13}]
["d.-","d)rara vez",null,null,{"$f":"COUNTIF(RESPUESTAS!H:H,GRÁFICOS!A96)","v":68}]
["e.-","e)Nunca",null,null,{"$f":"COUNTIF(RESPUESTAS!H:H,GRÁFICOS!A97)","v":23}]
[]
[]
[]
[]
[]
[]
[]
[]
[null,"4.- Ante la siguiente afirmación: \"Los/as colegas del municipio están muy preocupados por los temas ambientales\", ¿usted estaría?:"]
[]
[]
[]
[]
[]
[null,"Detalle",null,null,"Conteo"]
["a.-","a)     Totalmente de acuerdo",null,null,{"$f":"COUNTIF(RESPUESTAS!I:I,GRÁFICOS!A113)","v":46}]
["b.-","b)     Más bien de acuerdo",null,null,{"$f":"COUNTIF(RESPUESTAS!I:I,GRÁFICOS!A114)","v":56}]
["c.-","c)      Más bien en desacuerdo",null,null,{"$f":"COUNTIF(RESPUESTAS!I:I,GRÁFICOS!A115)","v":42}]
["d.-","d)     Totalmente en desacuerdo",null,null,{"$f":"COUNTIF(RESPUESTAS!I:I,GRÁFICOS!A116)","v":24}]
[]
[]
[]
[]
[]
[]
[]
[]
[]
[null,"5.- Respecto del territorio de su comuna, ¿cree que la situación medioambiental en los últimos 5 años se ha?:"]
[]
[]
[]
[]
[]
[]
[null,"Detalle",null,"Conteo"]
["a.-","a)     Mejorado",null,{"$f":"COUNTIF(RESPUESTAS!J:J,GRÁFICOS!A134)","v":42}]
["b.-","b)     Mantenido",null,{"$f":"COUNTIF(RESPUESTAS!J:J,GRÁFICOS!A135)","v":55}]
["c.-","c)      Empeorado",null,{"$f":"COUNTIF(RESPUESTAS!J:J,GRÁFICOS!A136)","v":53}]
["d.-","d)     No sé",null,{"$f":"COUNTIF(RESPUESTAS!J:J,GRÁFICOS!A137)","v":18}]
[]
[]
[]
[]
[]
[]
[]
[]
[null,"6.- ¿Cuál de los siguientes problemas ambientales es el que más afecta a su comuna, priorice dos según su gravedad. En caso de que su opción no se encuentre, responda en las líneas presentes a continuación del listado (solo dos):"]
[]
[]
[]
[]
[]
[null,"Detalle",null,null,null,"Conteo 1","Conteo 2"]
["a.-","a)     Contaminación del aire ",null,null,null,{"$f":"COUNTIF(RESPUESTAS!K:K,A153)","v":63},{"$f":"COUNTIF(RESPUESTAS!L:L,A153)","v":7}]
["b.-","b)     Contaminación del agua ",null,null,null,{"$f":"COUNTIF(RESPUESTAS!K:K,A154)","v":9},{"$f":"COUNTIF(RESPUESTAS!L:L,A154)","v":4}]
["c.-","c)      Contaminación del suelo ",null,null,null,{"$f":"COUNTIF(RESPUESTAS!K:K,A155)","v":69},{"$f":"COUNTIF(RESPUESTAS!L:L,A155)","v":23}]
["d.-","d)     Perdida de flora y fauna ",null,null,null,{"$f":"COUNTIF(RESPUESTAS!K:K,A156)","v":12},{"$f":"COUNTIF(RESPUESTAS!L:L,A156)","v":12}]
["e.-","e)      Tenencia irresponsable de mascota",null,null,null,{"$f":"COUNTIF(RESPUESTAS!K:K,A157)","v":15},{"$f":"COUNTIF(RESPUESTAS!L:L,A157)","v":122}]
["f.-","f)        No existen problemas ambientales",null,null,null,{"$f":"COUNTIF(RESPUESTAS!K:K,A158)","v":0},{"$f":"COUNTIF(RESPUESTAS!L:L,A158)","v":0}]
[]
[]
[]
[]
[]
[]
[]
[]
[]
[null,"7.- Cree que en el país las personas están cambiando su comportamiento en forma positiva para la protección o conservación del medio ambiente:"]
[]
[]
[]
[]
[]
[null,"Detalle",null,null,"Conteo"]
["a.-","a)     Totalmente de acuerdo",null,null,{"$f":"COUNTIF(RESPUESTAS!M:M,GRÁFICOS!A175)","v":24}]
["b.-","b)     Más bien de acuerdo",null,null,{"$f":"COUNTIF(RESPUESTAS!M:M,GRÁFICOS!A176)","v":105}]
["c.-","c)      Más bien en desacuerdo",null,null,{"$f":"COUNTIF(RESPUESTAS!M:M,GRÁFICOS!A177)","v":22}]
["d.-","d)     Totalmente en desacuerdo",null,null,{"$f":"COUNTIF(RESPUESTAS!M:M,GRÁFICOS!A178)","v":17}]
[]
[]
[]
[]
[]
[]
[]
[null,"8.- ¿Cree que en el país la situación ambiental en los últimos 5 años se ha?:"]
[]
[]
[]
[]
[]
[null,"Detalle",null,"Conteo"]
["a.-","a)     Mejorado",null,{"$f":"COUNTIF(RESPUESTAS!N:N,GRÁFICOS!A193)","v":33}]
["b.-","b)     Mantenido",null,{"$f":"COUNTIF(RESPUESTAS!N:N,GRÁFICOS!A194)","v":59}]
["c.-","c)      Empeorado",null,{"$f":"COUNTIF(RESPUESTAS!N:N,GRÁFICOS!A195)","v":70}]
["d.-","d)     No sé",null,{"$f":"COUNTIF(RESPUESTAS!N:N,GRÁFICOS!A196)","v":6}]
[]
[]
[]
[]
[]
[]
[]
[]
[]
[null,"9.- A su juicio, ¿quién es el principal responsable de los problemas ambientales en el país?"]
[]
[]
[]
[]
[null,"Detalle",null,"Conteo"]
["a.-","a)     Sector Público",null,{"$f":"COUNTIF(RESPUESTAS!O:O,GRÁFICOS!A212)","v":6}]
["b.-","b)     Sector Privado",null,{"$f":"COUNTIF(RESPUESTAS!O:O,GRÁFICOS!A213)","v":13}]
["c.-","c)      La Población",null,{"$f":"COUNTIF(RESPUESTAS!O:O,GRÁFICOS!A214)","v":16}]
["d.-","d)     Todos por igual",null,{"$f":"COUNTIF(RESPUESTAS!O:O,GRÁFICOS!A215)","v":133}]
[]
[]
[]
[]
[]
[]
[]
[]
[]
[]
[]
[null,"10.- El concepto de medio ambiente para usted es sinónimo de:"]
[]
[]
[]
[null,"Detalle",null,null,null,"Conteo"]
["a.-","a)     Ecología",null,null,null,{"$f":"COUNTIF(RESPUESTAS!P:P,GRÁFICOS!A232)","v":11}]
["b.-","b)     Naturaleza y sociedad",null,null,null,{"$f":"COUNTIF(RESPUESTAS!P:P,GRÁFICOS!A233)","v":22}]
["c.-","c)      Sociedad, Naturaleza y Ciudad ",null,null,null,{"$f":"COUNTIF(RESPUESTAS!P:P,GRÁFICOS!A234)","v":63}]
["d.-","d)     Ciudad y naturaleza",null,null,null,{"$f":"COUNTIF(RESPUESTAS!P:P,GRÁFICOS!A235)","v":5}]
["e.-","e)      Ecología, Sociedad y Ciudad",null,null,null,{"$f":"COUNTIF(RESPUESTAS!P:P,GRÁFICOS!A236)","v":61}]
["f.-","f)       Naturaleza",null,null,null,{"$f":"COUNTIF(RESPUESTAS!P:P,GRÁFICOS!A237)","v":6}]
[]
[]
[]
[]
[]
[]
[]
[]
[]
[]
[]
[]
[]
[]
[null,"11.- Por favor, indique cuan de acuerdo o en desacuero está con los siguientes enunciados:"]
[]
[null,"Criterio",null,null,"11.a","11.b","11.c","11.d","11.e","11.f","11.g","11.h","11.i","11.j"]
["a.- ","Totalmente de acuerdo",null,null,{"$f":"COUNTIF(RESPUESTAS!Q:Q,GRÁFICOS!$B$255)","v":58},{"$f":"COUNTIF(RESPUESTAS!R:R,GRÁFICOS!$B$255)","v":18},{"$f":"COUNTIF(RESPUESTAS!S:S,GRÁFICOS!$B$255)","v":11},{"$f":"COUNTIF(RESPUESTAS!T:T,GRÁFICOS!$B$255)","v":11},{"$f":"COUNTIF(RESPUESTAS!U:U,GRÁFICOS!$B$255)","v":24},{"$f":"COUNTIF(RESPUESTAS!V:V,GRÁFICOS!$B$255)","v":59},{"$f":"COUNTIF(RESPUESTAS!W:W,GRÁFICOS!$B$255)","v":55},{"$f":"COUNTIF(RESPUESTAS!X:X,GRÁFICOS!$B$255)","v":31},{"$f":"COUNTIF(RESPUESTAS!Y:Y,GRÁFICOS!$B$255)","v":35},{"$f":"COUNTIF(RESPUESTAS!Z:Z,GRÁFICOS!$B$255)","v":132}]
["b.-","Más bien de acuerdo",null,null,{"$f":"COUNTIF(RESPUESTAS!Q:Q,GRÁFICOS!$B$256)","v":52},{"$f":"COUNTIF(RESPUESTAS!R:R,GRÁFICOS!$B$256)","v":27},{"$f":"COUNTIF(RESPUESTAS!S:S,GRÁFICOS!$B$256)","v":25},{"$f":"COUNTIF(RESPUESTAS!T:T,GRÁFICOS!$B$256)","v":7},{"$f":"COUNTIF(RESPUESTAS!U:U,GRÁFICOS!$B$256)","v":29},{"$f":"COUNTIF(RESPUESTAS!V:V,GRÁFICOS!$B$256)","v":47},{"$f":"COUNTIF(RESPUESTAS!W:W,GRÁFICOS!$B$256)","v":39},{"$f":"COUNTIF(RESPUESTAS!X:X,GRÁFICOS!$B$256)","v":47},{"$f":"COUNTIF(RESPUESTAS!Y:Y,GRÁFICOS!$B$256)","v":56},{"$f":"COUNTIF(RESPUESTAS!Z:Z,GRÁFICOS!$B$256)","v":23}]
["c.-","Más bien en desacuerdo",null,null,{"$f":"COUNTIF(RESPUESTAS!Q:Q,GRÁFICOS!$B$257)","v":30},{"$f":"COUNTIF(RESPUESTAS!R:R,GRÁFICOS!$B$257)","v":56},{"$f":"COUNTIF(RESPUESTAS!S:S,GRÁFICOS!$B$257)","v":43},{"$f":"COUNTIF(RESPUESTAS!T:T,GRÁFICOS!$B$257)","v":26},{"$f":"COUNTIF(RESPUESTAS!U:U,GRÁFICOS!$B$257)","v":54},{"$f":"COUNTIF(RESPUESTAS!V:V,GRÁFICOS!$B$257)","v":36},{"$f":"COUNTIF(RESPUESTAS!W:W,GRÁFICOS!$B$257)","v":39},{"$f":"COUNTIF(RESPUESTAS!X:X,GRÁFICOS!$B$257)","v":57},{"$f":"COUNTIF(RESPUESTAS!Y:Y,GRÁFICOS!$B$257)","v":32},{"$f":"COUNTIF(RESPUESTAS!Z:Z,GRÁFICOS!$B$257)","v":5}]
["d.-","Totalmente en desacuerdo",null,null,{"$f":"COUNTIF(RESPUESTAS!Q:Q,GRÁFICOS!$B$258)","v":25},{"$f":"COUNTIF(RESPUESTAS!R:R,GRÁFICOS!$B$258)","v":67},{"$f":"COUNTIF(RESPUESTAS!S:S,GRÁFICOS!$B$258)","v":87},{"$f":"COUNTIF(RESPUESTAS!T:T,GRÁFICOS!$B$258)","v":119},{"$f":"COUNTIF(RESPUESTAS!U:U,GRÁFICOS!$B$258)","v":52},{"$f":"COUNTIF(RESPUESTAS!V:V,GRÁFICOS!$B$258)","v":19},{"$f":"COUNTIF(RESPUESTAS!W:W,GRÁFICOS!$B$258)","v":29},{"$f":"COUNTIF(RESPUESTAS!X:X,GRÁFICOS!$B$258)","v":23},{"$f":"COUNTIF(RESPUESTAS!Y:Y,GRÁFICOS!$B$258)","v":39},{"$f":"COUNTIF(RESPUESTAS!Z:Z,GRÁFICOS!$B$258)","v":4}]
["e.-","Lo ignoro",null,null,{"$f":"COUNTIF(RESPUESTAS!Q:Q,GRÁFICOS!$B$259)","v":3},{"$f":"COUNTIF(RESPUESTAS!R:R,GRÁFICOS!$B$259)","v":0},{"$f":"COUNTIF(RESPUESTAS!S:S,GRÁFICOS!$B$259)","v":2},{"$f":"COUNTIF(RESPUESTAS!T:T,GRÁFICOS!$B$259)","v":5},{"$f":"COUNTIF(RESPUESTAS!U:U,GRÁFICOS!$B$259)","v":9},{"$f":"COUNTIF(RESPUESTAS!V:V,GRÁFICOS!$B$259)","v":7},{"$f":"COUNTIF(RESPUESTAS!W:W,GRÁFICOS!$B$259)","v":6},{"$f":"COUNTIF(RESPUESTAS!X:X,GRÁFICOS!$B$259)","v":10},{"$f":"COUNTIF(RESPUESTAS!Y:Y,GRÁFICOS!$B$259)","v":6},{"$f":"COUNTIF(RESPUESTAS!Z:Z,GRÁFICOS!$B$259)","v":4}]
[]
[]
[]
[]
[]
[]
[]
[]
[]
[]
[]
[]
[]
[]
[]
[]
[]
[]
[]
[]
[]
[]
[]
[]
[]
[null,"12.- se presenta la siguiente situación: Existe un conflicto entre una empresa y una(s) comunidad(es) local(es) producto del uso o futura explotación que desea hacer la empresa sobre un determinado recurso natural. Por favor, indique cuan de acuerdo está con los siguientes enunciados."]
[]
[null,"Criterio",null,null,"12.a.-","12.b.-","12.c.-","12.d.-"]
["a.- ","Totalmente de acuerdo",null,null,{"$f":"COUNTIF(RESPUESTAS!AA:AA,GRÁFICOS!$B$288)","v":19},{"$f":"COUNTIF(RESPUESTAS!AB:AB,GRÁFICOS!$B$288)","v":118},{"$f":"COUNTIF(RESPUESTAS!AC:AC,GRÁFICOS!$B$288)","v":31},{"$f":"COUNTIF(RESPUESTAS!AD:AD,GRÁFICOS!$B$288)","v":111}]
["b.-","Más bien de acuerdo",null,null,{"$f":"COUNTIF(RESPUESTAS!AA:AA,GRÁFICOS!$B$289)","v":12},{"$f":"COUNTIF(RESPUESTAS!AB:AB,GRÁFICOS!$B$289)","v":35},{"$f":"COUNTIF(RESPUESTAS!AC:AC,GRÁFICOS!$B$289)","v":22},{"$f":"COUNTIF(RESPUESTAS!AD:AD,GRÁFICOS!$B$289)","v":31}]
["c.-","Más bien en desacuerdo",null,null,{"$f":"COUNTIF(RESPUESTAS!AA:AA,GRÁFICOS!$B$290)","v":27},{"$f":"COUNTIF(RESPUESTAS!AB:AB,GRÁFICOS!$B$290)","v":7},{"$f":"COUNTIF(RESPUESTAS!AC:AC,GRÁFICOS!$B$290)","v":47},{"$f":"COUNTIF(RESPUESTAS!AD:AD,GRÁFICOS!$B$290)","v":20}]
["d.-","Totalmente en desacuerdo",null,null,{"$f":"COUNTIF(RESPUESTAS!AA:AA,GRÁFICOS!$B$291)","v":102},{"$f":"COUNTIF(RESPUESTAS!AB:AB,GRÁFICOS!$B$291)","v":4},{"$f":"COUNTIF(RESPUESTAS!AC:AC,GRÁFICOS!$B$291)","v":62},{"$f":"COUNTIF(RESPUESTAS!AD:AD,GRÁFICOS!$B$291)","v":2}]
["e.-","No se pronuncia",null,null,{"$f":"COUNTIF(RESPUESTAS!AA:AA,GRÁFICOS!$B$292)","v":8},{"$f":"COUNTIF(RESPUESTAS!AB:AB,GRÁFICOS!$B$292)","v":4},{"$f":"COUNTIF(RESPUESTAS!AC:AC,GRÁFICOS!$B$292)","v":6},{"$f":"COUNTIF(RESPUESTAS!AD:AD,GRÁFICOS!$B$292)","v":4}]
[]
[]
[]
[]
[]
[]
[]
[]
[]
[]
[]
[]
[]
[]
[]
[]
[]
[]
[]
[]
[]
[]
[]
[]
[]
[]
[]
[]
[]
["III COMENTARIOS"]
[]
["1. Los funcionarios municipales no tienen claridad respecto de cuál es el órgano del Estado que elabora las Ordenanzas Municipales. El 46% de los resultados se inclinan por la opción de Ministerio de Medio Ambiente, le sigue un 38 % que optó por el Municipio."]
["2. El 47 % de los resultados se encuentra en lo correcto, las ordenanzas son instrumentos legales aplicables a la comunidad en general, el 32 % opina que las ordenanzas ambientales se aplican a las actividades económicas."]
["3. El 40 % de los encuestados opina que los funcionarios no realizan prácticas de reciclaje ni de ahorro de energía ni de ahorro de agua en sus oficinas."]
["4. Respecto a la premisa: los funcionarios municipales están preocupados por el medio ambiente, no se observa una tendencia, distribuyéndose con un 28 % a la aseveración \"totalmente de acuerdo\", 33% por la aseveración \"más bien de acuerdo\" y un 25 % para la aseveración \"más bien en desacuerdo\". El 14 % opina \"totalmente en desacuerdo\""]
["5. Respecto de la situación del medio ambiente en los últimos 5 años, el 33% de los funcionarios opina que se ha mantenido, el 31 % que señala que ha empeorado. El 25 % opina que ha mejorado."]
["6. Con relación a los principales problemas ambientales identificados por los funcionarios municipales, éstos son: tenencia irresponsable de mascotas (122 preferencias), contaminación del suelo (69 preferencias) y contaminación del aire (63 preferencias)."]
["7. Existe una intención en reconocer que la actitud de las personas ha cambiado positivamente, con respecto a su relación con el medio ambiente, el 63 % declara estar más bien de acuerdo. El 10 % está totalmente en desacuerdo."]
["8. Respecto de la situación ambiental a nivel país en los últimos 10 años, el 42 % de los funcionarios opina que se ha empeorado y el 35 % que se ha mantenido."]
["9. El 79 % de los funcionarios encuestados, reconoce que la responsabilidad por la situación del medio ambiente, es de todos por igual: públicos, privados y población. "]
["10. El 37 % de los encuestados define medio ambiente como \"Sociedad, Naturaleza y Ciudad\". Por otra parte, el 36 % admite la definición de \"Sociedad, Naturaleza y Ecología\", donde esta última corresponde a la ciencia que estudia la interrelación entre los seres vivos y su entorno."]